﻿Body Name ,Supp ID,,Supplier Name,Service Area Category,Supp Grp,Period,Invoice Date,TT,Unique Invoice Reference,,Inv Amount,Account,Expenditure Description,Cost C,Cost Centre Name,Posted Amount
Nottinghamshire Fire and Resccue Service,103371,Nottinghamshire Healthcare NHS Trust,Nottinghamshire Healthcare NHS Trust,Management & Support Services,5,202410,19/12/2023,P6,9109689,"-4,827.51 ","4,827.51 ",1005,Admin Agency Staff,2068,Prevention,"4,827.51 "
Nottinghamshire Fire and Resccue Service,103874,Reflect Recruitment Group Limited,Reflect Recruitment Group Limited,Management & Support Services,5,202410,11/12/2023,P6,9109696,-930.31 ,930.31 ,1005,Admin Agency Staff,2058,HR Support,775.26 
Nottinghamshire Fire and Resccue Service,103874,Reflect Recruitment Group Limited,Reflect Recruitment Group Limited,Management & Support Services,5,202410,18/12/2023,P6,9109697,-917.57 ,917.57 ,1005,Admin Agency Staff,2058,HR Support,764.64 
Nottinghamshire Fire and Resccue Service,101001,Express Recruitment Ltd,Express Recruitment Ltd,Management & Support Services,1,202410,27/12/2023,P6,9109709,-832.47 ,832.47 ,1005,Admin Agency Staff,2075,Service Support Hub,693.72 
Nottinghamshire Fire and Resccue Service,101001,Express Recruitment Ltd,Express Recruitment Ltd,Management & Support Services,1,202410,27/12/2023,P6,9109718,-330.40 ,330.40 ,1005,Admin Agency Staff,2070,Strategic Support,275.33 
Nottinghamshire Fire and Resccue Service,103874,Reflect Recruitment Group Limited,Reflect Recruitment Group Limited,Management & Support Services,5,202410,01/01/2024,P6,9109796,-382.32 ,382.32 ,1005,Admin Agency Staff,2058,HR Support,318.60 
Nottinghamshire Fire and Resccue Service,103874,Reflect Recruitment Group Limited,Reflect Recruitment Group Limited,Management & Support Services,5,202410,25/12/2023,P6,9109797,-943.06 ,943.06 ,1005,Admin Agency Staff,2058,HR Support,785.88 
Nottinghamshire Fire and Resccue Service,103696,Rebel Recruitment Limited,Rebel Recruitment Limited,Management & Support Services,5,202410,27/12/2023,P6,9109817,-960.00 ,960.00 ,1005,Admin Agency Staff,2097,ICT Service Operations,800.00 
Nottinghamshire Fire and Resccue Service,103958,Lithium3 Technology Recruitment Limited,Lithium3 Technology Recruitment Limited,Management & Support Services,5,202410,01/12/2023,P6,9109818,"-3,648.00 ","3,648.00 ",1005,Admin Agency Staff,2097,ICT Service Operations,"3,040.00 "
Nottinghamshire Fire and Resccue Service,103958,Lithium3 Technology Recruitment Limited,Lithium3 Technology Recruitment Limited,Management & Support Services,5,202410,03/01/2024,P6,9109819,-684.00 ,684.00 ,1005,Admin Agency Staff,2097,ICT Service Operations,570.00 
Nottinghamshire Fire and Resccue Service,101001,Express Recruitment Ltd,Express Recruitment Ltd,Management & Support Services,1,202410,10/01/2024,P6,9109864,-665.11 ,665.11 ,1005,Admin Agency Staff,2075,Service Support Hub,554.26 
Nottinghamshire Fire and Resccue Service,101001,Express Recruitment Ltd,Express Recruitment Ltd,Management & Support Services,1,202410,17/01/2024,P6,9109920,-665.11 ,665.11 ,1005,Admin Agency Staff,2075,Service Support Hub,554.26 
Nottinghamshire Fire and Resccue Service,101001,Express Recruitment Ltd,Express Recruitment Ltd,Management & Support Services,1,202410,10/01/2024,P6,9109921,-497.76 ,497.76 ,1005,Admin Agency Staff,2070,Strategic Support,414.80 
Nottinghamshire Fire and Resccue Service,101001,Express Recruitment Ltd,Express Recruitment Ltd,Management & Support Services,1,202410,17/01/2024,P6,9109922,-832.47 ,832.47 ,1005,Admin Agency Staff,2070,Strategic Support,693.72 
Nottinghamshire Fire and Resccue Service,101001,Express Recruitment Ltd,Express Recruitment Ltd,Management & Support Services,1,202410,24/01/2024,P6,9109999,-832.47 ,832.47 ,1005,Admin Agency Staff,2070,Strategic Support,693.72 
Nottinghamshire Fire and Resccue Service,103958,Lithium3 Technology Recruitment Limited,Lithium3 Technology Recruitment Limited,Management & Support Services,5,202410,24/01/2024,P6,9110004,"-1,140.00 ","1,140.00 ",1005,Admin Agency Staff,2097,ICT Service Operations,950.00 
Nottinghamshire Fire and Resccue Service,103696,Rebel Recruitment Limited,Rebel Recruitment Limited,Management & Support Services,5,202410,24/01/2024,P6,9110005,-768.00 ,768.00 ,1005,Admin Agency Staff,2097,ICT Service Operations,640.00 
Nottinghamshire Fire and Resccue Service,101001,Express Recruitment Ltd,Express Recruitment Ltd,Management & Support Services,1,202410,24/01/2024,P6,9110008,-832.47 ,832.47 ,1005,Admin Agency Staff,2075,Service Support Hub,693.72 
Nottinghamshire Fire and Resccue Service,103866,Richardson Associates (UK) Limited,Richardson Associates (UK) Limited,Management & Support Services,5,202410,18/12/2023,P6,9109698,-264.00 ,264.00 ,1801,Training,2054,Equalities Team,220.00 
Nottinghamshire Fire and Resccue Service,102933,Lincolnshire Fire and Rescue Service,Lincolnshire Fire and Rescue Service,Operational Responses,4,202410,14/12/2023,P6,9109705,"-43,800.00 ","43,800.00 ",1801,Training,2074,Operational Training,"36,500.00 "
Nottinghamshire Fire and Resccue Service,103960,(Vanessa Boon trading as) Energise - people development & diversity,(Vanessa Boon trading as) Energise - people development & diversity,Management & Support Services,5,202410,20/11/2023,P6,9109738,-800.00 ,800.00 ,1801,Training,2054,Equalities Team,800.00 
Nottinghamshire Fire and Resccue Service,101847,The Outreach Organisation Limited,The Outreach Organisation Limited,Operational Responses,1,202410,10/01/2024,P6,9109814,"-1,866.00 ","1,866.00 ",1801,Training,2074,Operational Training,"1,555.00 "
Nottinghamshire Fire and Resccue Service,100212,Driving Standards Agency,Driving Standards Agency,Operational Responses,4,202410,20/06/2023,P6,9109838,-950.00 ,950.00 ,1801,Training,2074,Operational Training,950.00 
Nottinghamshire Fire and Resccue Service,103839,The Knowledge Academy Limited,The Knowledge Academy Limited,Management & Support Services,5,202410,15/12/2023,P6,9109947,"-2,994.00 ","2,994.00 ",1801,Training,2097,ICT Service Operations,"2,495.00 "
Nottinghamshire Fire and Resccue Service,104300,Central Medical Services,Central Medical Services,Operational Responses,5,202410,17/09/2023,P6,9109953,"-2,394.00 ","2,394.00 ",1801,Training,2074,Operational Training,"1,995.00 "
Nottinghamshire Fire and Resccue Service,102933,Lincolnshire Fire and Rescue Service,Lincolnshire Fire and Rescue Service,Operational Responses,4,202410,18/01/2024,P6,9109958,"-14,400.00 ","14,400.00 ",1801,Training,2074,Operational Training,"12,000.00 "
Nottinghamshire Fire and Resccue Service,100409,Peter Stanley Training Ltd,Peter Stanley Training Ltd,Management & Support Services,1,202410,25/01/2024,P6,9109960,"-4,296.00 ","4,296.00 ",1801,Training,2059,Corporate Training,"3,580.00 "
Nottinghamshire Fire and Resccue Service,102933,Lincolnshire Fire and Rescue Service,Lincolnshire Fire and Rescue Service,Operational Responses,4,202410,18/01/2024,P6,9109961,"-4,200.00 ","4,200.00 ",1801,Training,2074,Operational Training,"3,500.00 "
Nottinghamshire Fire and Resccue Service,103080,Rescue 3 Europe Limited,Rescue 3 Europe Limited,Operational Responses,5,202410,24/01/2024,P6,9110009,"-6,000.00 ","6,000.00 ",1801,Training,2074,Operational Training,"5,000.00 "
Nottinghamshire Fire and Resccue Service,104102,United Kingdom Association of Fire Investigators (UKAFI),United Kingdom Association of Fire Investigators (UKAFI),Prevention and Education ,5,202410,08/05/2023,P6,9109943,-708.00 ,708.00 ,1815,Professional Body Subscriptions,2026,Fire Investigation,708.00 
Nottinghamshire Fire and Resccue Service,103377,Flat Fee Recruiter Limited,Flat Fee Recruiter Limited,Management & Support Services,5,202410,20/11/2023,P6,9109690,-322.80 ,322.80 ,1850,Recruitment Advertising,2049,Professional Support,269.00 
Nottinghamshire Fire and Resccue Service,103377,Flat Fee Recruiter Limited,Flat Fee Recruiter Limited,Management & Support Services,5,202410,22/12/2023,P6,9109729,-645.60 ,645.60 ,1850,Recruitment Advertising,2049,Professional Support,538.00 
Nottinghamshire Fire and Resccue Service,103377,Flat Fee Recruiter Limited,Flat Fee Recruiter Limited,Management & Support Services,5,202410,04/01/2024,P6,9109780,-322.80 ,322.80 ,1850,Recruitment Advertising,2049,Professional Support,269.00 
Nottinghamshire Fire and Resccue Service,103923,Bupa UK Insurance Services,Bupa UK Insurance Services,Management & Support Services,5,202410,28/12/2023,P6,9109722,"-3,342.76 ","3,342.76 ",1860,Employee Benefits Schemes,2049,Professional Support,"3,342.76 "
Nottinghamshire Fire and Resccue Service,102874,NCC Pension Fund,NCC Pension Fund,Management & Support Services,1,202410,20/12/2023,P6,9109764,"-4,241.08 ","4,241.08 ",1905,Gratuities,1089,Pension Costs met from Revenue,105.09 
Nottinghamshire Fire and Resccue Service,102874,NCC Pension Fund,NCC Pension Fund,Management & Support Services,1,202410,20/12/2023,P6,9109764,"-4,241.08 ","4,241.08 ",1921,Annual Pensions - Non Uniforms,1089,Pension Costs met from Revenue,"4,135.99 "
Nottinghamshire Fire and Resccue Service,102280,Amptron Electrical Services,Amptron Electrical Services,Management & Support Services,1,202410,31/12/2023,P6,9109760,-390.70 ,390.70 ,2000,Buildings Repairs and Maintenance - Reactive,2087,Estates Department (Previously Premises),325.58 
Nottinghamshire Fire and Resccue Service,102280,Amptron Electrical Services,Amptron Electrical Services,Management & Support Services,1,202410,31/12/2023,P6,9109766,-360.88 ,360.88 ,2000,Buildings Repairs and Maintenance - Reactive,2087,Estates Department (Previously Premises),300.73 
Nottinghamshire Fire and Resccue Service,100357,Eastern Shires Purchasing Organisation,Eastern Shires Purchasing Organisation,Operational Responses,1,202410,12/01/2024,P6,9109859,-324.00 ,324.00 ,2000,Buildings Repairs and Maintenance - Reactive,1019,West Bridgford,270.00 
Nottinghamshire Fire and Resccue Service,100125,Nottinghamshire County Council,Nottinghamshire County Council,Management & Support Services,1,202410,08/01/2024,P6,9109886,-372.00 ,372.00 ,2000,Buildings Repairs and Maintenance - Reactive,1035,Headquarters,310.00 
Nottinghamshire Fire and Resccue Service,103837,BWT UK Limited,BWT UK Limited,Management & Support Services,5,202410,31/12/2023,P6,9109707,-571.52 ,571.52 ,2050,Building Maintenance - Planned,2087,Estates Department (Previously Premises),476.27 
Nottinghamshire Fire and Resccue Service,104053,Kings Security Systems Limited T/A Kings Secure Technologies,Kings Security Systems Limited T/A Kings Secure Technologies,Management & Support Services,5,202410,31/10/2023,P6,9109826,"-6,766.87 ","6,766.87 ",2050,Building Maintenance - Planned,1035,Headquarters,"5,639.06 "
Nottinghamshire Fire and Resccue Service,104053,Kings Security Systems Limited T/A Kings Secure Technologies,Kings Security Systems Limited T/A Kings Secure Technologies,Management & Support Services,5,202410,09/01/2024,P6,9109828,"-10,850.80 ","10,850.80 ",2050,Building Maintenance - Planned,1035,Headquarters,"9,042.33 "
Nottinghamshire Fire and Resccue Service,102280,Amptron Electrical Services,Amptron Electrical Services,Management & Support Services,1,202410,31/12/2023,P6,9109888,"-60,424.90 ","60,424.90 ",2050,Building Maintenance - Planned,1030,Service Development Centre,"50,354.08 "
Nottinghamshire Fire and Resccue Service,102280,Amptron Electrical Services,Amptron Electrical Services,Operational Responses,1,202410,31/12/2023,P6,9109949,"-6,804.00 ","6,804.00 ",2050,Building Maintenance - Planned,1001,Mansfield,925.88 
Nottinghamshire Fire and Resccue Service,102280,Amptron Electrical Services,Amptron Electrical Services,Operational Responses,1,202410,31/12/2023,P6,9109949,"-6,804.00 ","6,804.00 ",2050,Building Maintenance - Planned,1007,Warsop,694.12 
Nottinghamshire Fire and Resccue Service,102280,Amptron Electrical Services,Amptron Electrical Services,Operational Responses,1,202410,31/12/2023,P6,9109949,"-6,804.00 ","6,804.00 ",2050,Building Maintenance - Planned,1013,Tuxford,694.12 
Nottinghamshire Fire and Resccue Service,102280,Amptron Electrical Services,Amptron Electrical Services,Operational Responses,1,202410,31/12/2023,P6,9109949,"-6,804.00 ","6,804.00 ",2050,Building Maintenance - Planned,1017,Bingham,694.12 
Nottinghamshire Fire and Resccue Service,102280,Amptron Electrical Services,Amptron Electrical Services,Operational Responses,1,202410,31/12/2023,P6,9109949,"-6,804.00 ","6,804.00 ",2050,Building Maintenance - Planned,1019,West Bridgford,"1,041.75 "
Nottinghamshire Fire and Resccue Service,102280,Amptron Electrical Services,Amptron Electrical Services,Operational Responses,1,202410,31/12/2023,P6,9109949,"-6,804.00 ","6,804.00 ",2050,Building Maintenance - Planned,1020,Stockhill,925.88 
Nottinghamshire Fire and Resccue Service,102280,Amptron Electrical Services,Amptron Electrical Services,Operational Responses,1,202410,31/12/2023,P6,9109949,"-6,804.00 ","6,804.00 ",2050,Building Maintenance - Planned,1026,Arnold,694.13 
Nottinghamshire Fire and Resccue Service,101767,Cathedral Leasing Limited,Cathedral Leasing Limited,Management & Support Services,1,202410,01/12/2023,P6,9109968,"-3,715.20 ","3,715.20 ",2050,Building Maintenance - Planned,2087,Estates Department (Previously Premises),"3,096.00 "
Nottinghamshire Fire and Resccue Service,102280,Amptron Electrical Services,Amptron Electrical Services,Operational Responses,1,202410,22/01/2024,P6,9109974,"-9,623.39 ","9,623.39 ",2050,Building Maintenance - Planned,1001,Mansfield,299.59 
Nottinghamshire Fire and Resccue Service,102280,Amptron Electrical Services,Amptron Electrical Services,Operational Responses,1,202410,22/01/2024,P6,9109974,"-9,623.39 ","9,623.39 ",2050,Building Maintenance - Planned,1002,Blidworth,252.25 
Nottinghamshire Fire and Resccue Service,102280,Amptron Electrical Services,Amptron Electrical Services,Operational Responses,1,202410,22/01/2024,P6,9109974,"-9,623.39 ","9,623.39 ",2050,Building Maintenance - Planned,1003,London Road,299.59 
Nottinghamshire Fire and Resccue Service,102280,Amptron Electrical Services,Amptron Electrical Services,Operational Responses,1,202410,22/01/2024,P6,9109974,"-9,623.39 ","9,623.39 ",2050,Building Maintenance - Planned,1005,Ashfield,299.59 
Nottinghamshire Fire and Resccue Service,102280,Amptron Electrical Services,Amptron Electrical Services,Operational Responses,1,202410,22/01/2024,P6,9109974,"-9,623.39 ","9,623.39 ",2050,Building Maintenance - Planned,1006,Edwinstowe,318.25 
Nottinghamshire Fire and Resccue Service,102280,Amptron Electrical Services,Amptron Electrical Services,Operational Responses,1,202410,22/01/2024,P6,9109974,"-9,623.39 ","9,623.39 ",2050,Building Maintenance - Planned,1007,Warsop,"1,117.28 "
Nottinghamshire Fire and Resccue Service,102280,Amptron Electrical Services,Amptron Electrical Services,Operational Responses,1,202410,22/01/2024,P6,9109974,"-9,623.39 ","9,623.39 ",2050,Building Maintenance - Planned,1008,Worksop,344.33 
Nottinghamshire Fire and Resccue Service,102280,Amptron Electrical Services,Amptron Electrical Services,Operational Responses,1,202410,22/01/2024,P6,9109974,"-9,623.39 ","9,623.39 ",2050,Building Maintenance - Planned,1010,Harworth,287.11 
Nottinghamshire Fire and Resccue Service,102280,Amptron Electrical Services,Amptron Electrical Services,Operational Responses,1,202410,22/01/2024,P6,9109974,"-9,623.39 ","9,623.39 ",2050,Building Maintenance - Planned,1011,Misterton,269.63 
Nottinghamshire Fire and Resccue Service,102280,Amptron Electrical Services,Amptron Electrical Services,Operational Responses,1,202410,22/01/2024,P6,9109974,"-9,623.39 ","9,623.39 ",2050,Building Maintenance - Planned,1012,Retford,264.73 
Nottinghamshire Fire and Resccue Service,102280,Amptron Electrical Services,Amptron Electrical Services,Operational Responses,1,202410,22/01/2024,P6,9109974,"-9,623.39 ","9,623.39 ",2050,Building Maintenance - Planned,1013,Tuxford,252.25 
Nottinghamshire Fire and Resccue Service,102280,Amptron Electrical Services,Amptron Electrical Services,Operational Responses,1,202410,22/01/2024,P6,9109974,"-9,623.39 ","9,623.39 ",2050,Building Maintenance - Planned,1014,Southwell,252.25 
Nottinghamshire Fire and Resccue Service,102280,Amptron Electrical Services,Amptron Electrical Services,Operational Responses,1,202410,22/01/2024,P6,9109974,"-9,623.39 ","9,623.39 ",2050,Building Maintenance - Planned,1015,Collingham,252.25 
Nottinghamshire Fire and Resccue Service,102280,Amptron Electrical Services,Amptron Electrical Services,Operational Responses,1,202410,22/01/2024,P6,9109974,"-9,623.39 ","9,623.39 ",2050,Building Maintenance - Planned,1016,Newark,321.95 
Nottinghamshire Fire and Resccue Service,102280,Amptron Electrical Services,Amptron Electrical Services,Operational Responses,1,202410,22/01/2024,P6,9109974,"-9,623.39 ","9,623.39 ",2050,Building Maintenance - Planned,1017,Bingham,252.25 
Nottinghamshire Fire and Resccue Service,102280,Amptron Electrical Services,Amptron Electrical Services,Operational Responses,1,202410,22/01/2024,P6,9109974,"-9,623.39 ","9,623.39 ",2050,Building Maintenance - Planned,1019,West Bridgford,299.59 
Nottinghamshire Fire and Resccue Service,102280,Amptron Electrical Services,Amptron Electrical Services,Operational Responses,1,202410,22/01/2024,P6,9109974,"-9,623.39 ","9,623.39 ",2050,Building Maintenance - Planned,1020,Stockhill,299.59 
Nottinghamshire Fire and Resccue Service,102280,Amptron Electrical Services,Amptron Electrical Services,Operational Responses,1,202410,22/01/2024,P6,9109974,"-9,623.39 ","9,623.39 ",2050,Building Maintenance - Planned,1023,Stapleford,252.25 
Nottinghamshire Fire and Resccue Service,102280,Amptron Electrical Services,Amptron Electrical Services,Operational Responses,1,202410,22/01/2024,P6,9109974,"-9,623.39 ","9,623.39 ",2050,Building Maintenance - Planned,1024,Eastwood,252.25 
Nottinghamshire Fire and Resccue Service,102280,Amptron Electrical Services,Amptron Electrical Services,Operational Responses,1,202410,22/01/2024,P6,9109974,"-9,623.39 ","9,623.39 ",2050,Building Maintenance - Planned,1026,Arnold,264.73 
Nottinghamshire Fire and Resccue Service,102280,Amptron Electrical Services,Amptron Electrical Services,Operational Responses,1,202410,22/01/2024,P6,9109974,"-9,623.39 ","9,623.39 ",2050,Building Maintenance - Planned,1027,Carlton,299.59 
Nottinghamshire Fire and Resccue Service,102280,Amptron Electrical Services,Amptron Electrical Services,Operational Responses,1,202410,22/01/2024,P6,9109974,"-9,623.39 ","9,623.39 ",2050,Building Maintenance - Planned,1028,East Leake,251.89 
Nottinghamshire Fire and Resccue Service,102280,Amptron Electrical Services,Amptron Electrical Services,Operational Responses,1,202410,22/01/2024,P6,9109974,"-9,623.39 ","9,623.39 ",2050,Building Maintenance - Planned,1029,Highfields Station,709.22 
Nottinghamshire Fire and Resccue Service,102280,Amptron Electrical Services,Amptron Electrical Services,Management & Support Services,1,202410,22/01/2024,P6,9109974,"-9,623.39 ","9,623.39 ",2050,Building Maintenance - Planned,1030,Service Development Centre,307.08 
Nottinghamshire Fire and Resccue Service,102280,Amptron Electrical Services,Amptron Electrical Services,Operational Responses,1,202410,22/01/2024,P6,9109984,"-2,160.00 ","2,160.00 ",2050,Building Maintenance - Planned,1007,Warsop,"1,800.00 "
Nottinghamshire Fire and Resccue Service,102280,Amptron Electrical Services,Amptron Electrical Services,Operational Responses,1,202410,23/01/2024,P6,9109985,"-8,528.60 ","8,528.60 ",2050,Building Maintenance - Planned,1001,Mansfield,748.76 
Nottinghamshire Fire and Resccue Service,102280,Amptron Electrical Services,Amptron Electrical Services,Operational Responses,1,202410,23/01/2024,P6,9109985,"-8,528.60 ","8,528.60 ",2050,Building Maintenance - Planned,1003,London Road,685.55 
Nottinghamshire Fire and Resccue Service,102280,Amptron Electrical Services,Amptron Electrical Services,Operational Responses,1,202410,23/01/2024,P6,9109985,"-8,528.60 ","8,528.60 ",2050,Building Maintenance - Planned,1008,Worksop,69.63 
Nottinghamshire Fire and Resccue Service,102280,Amptron Electrical Services,Amptron Electrical Services,Operational Responses,1,202410,23/01/2024,P6,9109985,"-8,528.60 ","8,528.60 ",2050,Building Maintenance - Planned,1011,Misterton,"2,940.00 "
Nottinghamshire Fire and Resccue Service,102280,Amptron Electrical Services,Amptron Electrical Services,Operational Responses,1,202410,23/01/2024,P6,9109985,"-8,528.60 ","8,528.60 ",2050,Building Maintenance - Planned,1019,West Bridgford,620.08 
Nottinghamshire Fire and Resccue Service,102280,Amptron Electrical Services,Amptron Electrical Services,Operational Responses,1,202410,23/01/2024,P6,9109985,"-8,528.60 ","8,528.60 ",2050,Building Maintenance - Planned,1020,Stockhill,621.74 
Nottinghamshire Fire and Resccue Service,102280,Amptron Electrical Services,Amptron Electrical Services,Operational Responses,1,202410,23/01/2024,P6,9109985,"-8,528.60 ","8,528.60 ",2050,Building Maintenance - Planned,1023,Stapleford,69.32 
Nottinghamshire Fire and Resccue Service,102280,Amptron Electrical Services,Amptron Electrical Services,Operational Responses,1,202410,23/01/2024,P6,9109985,"-8,528.60 ","8,528.60 ",2050,Building Maintenance - Planned,1026,Arnold,755.05 
Nottinghamshire Fire and Resccue Service,102280,Amptron Electrical Services,Amptron Electrical Services,Operational Responses,1,202410,23/01/2024,P6,9109985,"-8,528.60 ","8,528.60 ",2050,Building Maintenance - Planned,1027,Carlton,280.74 
Nottinghamshire Fire and Resccue Service,102280,Amptron Electrical Services,Amptron Electrical Services,Operational Responses,1,202410,23/01/2024,P6,9109985,"-8,528.60 ","8,528.60 ",2050,Building Maintenance - Planned,1029,Highfields Station,316.29 
Nottinghamshire Fire and Resccue Service,102280,Amptron Electrical Services,Amptron Electrical Services,Operational Responses,1,202410,22/01/2024,P6,9109989,"-1,527.55 ","1,527.55 ",2050,Building Maintenance - Planned,1003,London Road,212.16 
Nottinghamshire Fire and Resccue Service,102280,Amptron Electrical Services,Amptron Electrical Services,Operational Responses,1,202410,22/01/2024,P6,9109989,"-1,527.55 ","1,527.55 ",2050,Building Maintenance - Planned,1008,Worksop,212.16 
Nottinghamshire Fire and Resccue Service,102280,Amptron Electrical Services,Amptron Electrical Services,Operational Responses,1,202410,22/01/2024,P6,9109989,"-1,527.55 ","1,527.55 ",2050,Building Maintenance - Planned,1012,Retford,212.16 
Nottinghamshire Fire and Resccue Service,102280,Amptron Electrical Services,Amptron Electrical Services,Operational Responses,1,202410,22/01/2024,P6,9109989,"-1,527.55 ","1,527.55 ",2050,Building Maintenance - Planned,1016,Newark,212.16 
Nottinghamshire Fire and Resccue Service,102280,Amptron Electrical Services,Amptron Electrical Services,Operational Responses,1,202410,22/01/2024,P6,9109989,"-1,527.55 ","1,527.55 ",2050,Building Maintenance - Planned,1027,Carlton,212.16 
Nottinghamshire Fire and Resccue Service,102280,Amptron Electrical Services,Amptron Electrical Services,Operational Responses,1,202410,22/01/2024,P6,9109989,"-1,527.55 ","1,527.55 ",2050,Building Maintenance - Planned,1029,Highfields Station,212.16 
Nottinghamshire Fire and Resccue Service,102280,Amptron Electrical Services,Amptron Electrical Services,Management & Support Services,1,202410,22/01/2024,P6,9109990,-579.60 ,579.60 ,2050,Building Maintenance - Planned,1030,Service Development Centre,483.00 
Nottinghamshire Fire and Resccue Service,102280,Amptron Electrical Services,Amptron Electrical Services,Operational Responses,1,202410,22/01/2024,P6,9109991,"-1,024.66 ","1,024.66 ",2050,Building Maintenance - Planned,1001,Mansfield,853.88 
Nottinghamshire Fire and Resccue Service,102280,Amptron Electrical Services,Amptron Electrical Services,Operational Responses,1,202410,22/01/2024,P6,9109992,"-2,068.57 ","2,068.57 ",2050,Building Maintenance - Planned,1001,Mansfield,"1,723.81 "
Nottinghamshire Fire and Resccue Service,102280,Amptron Electrical Services,Amptron Electrical Services,Management & Support Services,1,202410,22/01/2024,P6,9109993,"-2,898.00 ","2,898.00 ",2050,Building Maintenance - Planned,1030,Service Development Centre,"2,415.00 "
Nottinghamshire Fire and Resccue Service,102280,Amptron Electrical Services,Amptron Electrical Services,Operational Responses,1,202410,22/01/2024,P6,9109994,"-39,494.29 ","39,494.29 ",2050,Building Maintenance - Planned,1001,Mansfield,"1,356.67 "
Nottinghamshire Fire and Resccue Service,102280,Amptron Electrical Services,Amptron Electrical Services,Operational Responses,1,202410,22/01/2024,P6,9109994,"-39,494.29 ","39,494.29 ",2050,Building Maintenance - Planned,1002,Blidworth,728.70 
Nottinghamshire Fire and Resccue Service,102280,Amptron Electrical Services,Amptron Electrical Services,Operational Responses,1,202410,22/01/2024,P6,9109994,"-39,494.29 ","39,494.29 ",2050,Building Maintenance - Planned,1003,London Road,"2,022.23 "
Nottinghamshire Fire and Resccue Service,102280,Amptron Electrical Services,Amptron Electrical Services,Operational Responses,1,202410,22/01/2024,P6,9109994,"-39,494.29 ","39,494.29 ",2050,Building Maintenance - Planned,1005,Ashfield,866.63 
Nottinghamshire Fire and Resccue Service,102280,Amptron Electrical Services,Amptron Electrical Services,Operational Responses,1,202410,22/01/2024,P6,9109994,"-39,494.29 ","39,494.29 ",2050,Building Maintenance - Planned,1006,Edwinstowe,439.53 
Nottinghamshire Fire and Resccue Service,102280,Amptron Electrical Services,Amptron Electrical Services,Operational Responses,1,202410,22/01/2024,P6,9109994,"-39,494.29 ","39,494.29 ",2050,Building Maintenance - Planned,1007,Warsop,423.31 
Nottinghamshire Fire and Resccue Service,102280,Amptron Electrical Services,Amptron Electrical Services,Operational Responses,1,202410,22/01/2024,P6,9109994,"-39,494.29 ","39,494.29 ",2050,Building Maintenance - Planned,1008,Worksop,"1,697.01 "
Nottinghamshire Fire and Resccue Service,102280,Amptron Electrical Services,Amptron Electrical Services,Operational Responses,1,202410,22/01/2024,P6,9109994,"-39,494.29 ","39,494.29 ",2050,Building Maintenance - Planned,1010,Harworth,603.02 
Nottinghamshire Fire and Resccue Service,102280,Amptron Electrical Services,Amptron Electrical Services,Operational Responses,1,202410,22/01/2024,P6,9109994,"-39,494.29 ","39,494.29 ",2050,Building Maintenance - Planned,1011,Misterton,638.86 
Nottinghamshire Fire and Resccue Service,102280,Amptron Electrical Services,Amptron Electrical Services,Operational Responses,1,202410,22/01/2024,P6,9109994,"-39,494.29 ","39,494.29 ",2050,Building Maintenance - Planned,1012,Retford,"2,890.20 "
Nottinghamshire Fire and Resccue Service,102280,Amptron Electrical Services,Amptron Electrical Services,Operational Responses,1,202410,22/01/2024,P6,9109994,"-39,494.29 ","39,494.29 ",2050,Building Maintenance - Planned,1013,Tuxford,"1,303.25 "
Nottinghamshire Fire and Resccue Service,102280,Amptron Electrical Services,Amptron Electrical Services,Operational Responses,1,202410,22/01/2024,P6,9109994,"-39,494.29 ","39,494.29 ",2050,Building Maintenance - Planned,1014,Southwell,667.56 
Nottinghamshire Fire and Resccue Service,102280,Amptron Electrical Services,Amptron Electrical Services,Operational Responses,1,202410,22/01/2024,P6,9109994,"-39,494.29 ","39,494.29 ",2050,Building Maintenance - Planned,1015,Collingham,439.53 
Nottinghamshire Fire and Resccue Service,102280,Amptron Electrical Services,Amptron Electrical Services,Operational Responses,1,202410,22/01/2024,P6,9109994,"-39,494.29 ","39,494.29 ",2050,Building Maintenance - Planned,1016,Newark,"1,375.39 "
Nottinghamshire Fire and Resccue Service,102280,Amptron Electrical Services,Amptron Electrical Services,Operational Responses,1,202410,22/01/2024,P6,9109994,"-39,494.29 ","39,494.29 ",2050,Building Maintenance - Planned,1017,Bingham,603.02 
Nottinghamshire Fire and Resccue Service,102280,Amptron Electrical Services,Amptron Electrical Services,Operational Responses,1,202410,22/01/2024,P6,9109994,"-39,494.29 ","39,494.29 ",2050,Building Maintenance - Planned,1019,West Bridgford,836.40 
Nottinghamshire Fire and Resccue Service,102280,Amptron Electrical Services,Amptron Electrical Services,Operational Responses,1,202410,22/01/2024,P6,9109994,"-39,494.29 ","39,494.29 ",2050,Building Maintenance - Planned,1020,Stockhill,"1,750.21 "
Nottinghamshire Fire and Resccue Service,102280,Amptron Electrical Services,Amptron Electrical Services,Operational Responses,1,202410,22/01/2024,P6,9109994,"-39,494.29 ","39,494.29 ",2050,Building Maintenance - Planned,1023,Stapleford,668.81 
Nottinghamshire Fire and Resccue Service,102280,Amptron Electrical Services,Amptron Electrical Services,Operational Responses,1,202410,22/01/2024,P6,9109994,"-39,494.29 ","39,494.29 ",2050,Building Maintenance - Planned,1024,Eastwood,818.51 
Nottinghamshire Fire and Resccue Service,102280,Amptron Electrical Services,Amptron Electrical Services,Operational Responses,1,202410,22/01/2024,P6,9109994,"-39,494.29 ","39,494.29 ",2050,Building Maintenance - Planned,1026,Arnold,598.03 
Nottinghamshire Fire and Resccue Service,102280,Amptron Electrical Services,Amptron Electrical Services,Operational Responses,1,202410,22/01/2024,P6,9109994,"-39,494.29 ","39,494.29 ",2050,Building Maintenance - Planned,1027,Carlton,"3,255.92 "
Nottinghamshire Fire and Resccue Service,102280,Amptron Electrical Services,Amptron Electrical Services,Operational Responses,1,202410,22/01/2024,P6,9109994,"-39,494.29 ","39,494.29 ",2050,Building Maintenance - Planned,1028,East Leake,771.15 
Nottinghamshire Fire and Resccue Service,102280,Amptron Electrical Services,Amptron Electrical Services,Operational Responses,1,202410,22/01/2024,P6,9109994,"-39,494.29 ","39,494.29 ",2050,Building Maintenance - Planned,1029,Highfields Station,"2,447.11 "
Nottinghamshire Fire and Resccue Service,102280,Amptron Electrical Services,Amptron Electrical Services,Management & Support Services,1,202410,22/01/2024,P6,9109994,"-39,494.29 ","39,494.29 ",2050,Building Maintenance - Planned,1030,Service Development Centre,"5,710.86 "
Nottinghamshire Fire and Resccue Service,102280,Amptron Electrical Services,Amptron Electrical Services,Operational Responses,1,202410,23/01/2024,P6,9109995,-459.66 ,459.66 ,2050,Building Maintenance - Planned,1029,Highfields Station,383.05 
Nottinghamshire Fire and Resccue Service,102280,Amptron Electrical Services,Amptron Electrical Services,Operational Responses,1,202410,22/01/2024,P6,9110002,"-8,197.20 ","8,197.20 ",2050,Building Maintenance - Planned,1001,Mansfield,"6,831.00 "
Nottinghamshire Fire and Resccue Service,102280,Amptron Electrical Services,Amptron Electrical Services,Operational Responses,1,202410,22/01/2024,P6,9110003,"-16,548.61 ","16,548.61 ",2050,Building Maintenance - Planned,1001,Mansfield,"13,790.51 "
Nottinghamshire Fire and Resccue Service,102744,EDF Energy,EDF Energy,Operational Responses,1,202410,27/12/2023,P6,9109742,"-4,159.31 ","4,159.31 ",2100,Electricity,1008,Worksop,0.01 
Nottinghamshire Fire and Resccue Service,102744,EDF Energy,EDF Energy,Operational Responses,1,202410,27/12/2023,P6,9109742,"-4,159.31 ","4,159.31 ",2100,Electricity,1008,Worksop,"3,466.08 "
Nottinghamshire Fire and Resccue Service,102744,EDF Energy,EDF Energy,Operational Responses,1,202410,02/01/2024,P6,9109743,-612.31 ,612.31 ,2100,Electricity,1001,Mansfield,510.26 
Nottinghamshire Fire and Resccue Service,102744,EDF Energy,EDF Energy,Operational Responses,1,202410,02/01/2024,P6,9109744,"-1,936.11 ","1,936.11 ",2100,Electricity,1013,Tuxford,"1,613.42 "
Nottinghamshire Fire and Resccue Service,102744,EDF Energy,EDF Energy,Operational Responses,1,202410,02/01/2024,P6,9109746,"-4,651.75 ","4,651.75 ",2100,Electricity,1001,Mansfield,"3,876.46 "
Nottinghamshire Fire and Resccue Service,102744,EDF Energy,EDF Energy,Operational Responses,1,202410,02/01/2024,P6,9109747,"-2,777.75 ","2,777.75 ",2100,Electricity,1026,Arnold,"2,314.79 "
Nottinghamshire Fire and Resccue Service,102744,EDF Energy,EDF Energy,Operational Responses,1,202410,02/01/2024,P6,9109748,-551.33 ,551.33 ,2100,Electricity,1002,Blidworth,459.44 
Nottinghamshire Fire and Resccue Service,102744,EDF Energy,EDF Energy,Operational Responses,1,202410,02/01/2024,P6,9109749,"-3,045.46 ","3,045.46 ",2100,Electricity,1010,Harworth,10.28 
Nottinghamshire Fire and Resccue Service,102744,EDF Energy,EDF Energy,Operational Responses,1,202410,02/01/2024,P6,9109749,"-3,045.46 ","3,045.46 ",2100,Electricity,1010,Harworth,"2,529.31 "
Nottinghamshire Fire and Resccue Service,102744,EDF Energy,EDF Energy,Operational Responses,1,202410,02/01/2024,P6,9109750,-535.94 ,535.94 ,2100,Electricity,1014,Southwell,446.62 
Nottinghamshire Fire and Resccue Service,102744,EDF Energy,EDF Energy,Operational Responses,1,202410,02/01/2024,P6,9109751,"-7,809.43 ","7,809.43 ",2100,Electricity,1023,Stapleford,"6,507.85 "
Nottinghamshire Fire and Resccue Service,102744,EDF Energy,EDF Energy,Operational Responses,1,202410,02/01/2024,P6,9109752,"-2,059.67 ","2,059.67 ",2100,Electricity,1017,Bingham,"1,716.39 "
Nottinghamshire Fire and Resccue Service,102744,EDF Energy,EDF Energy,Operational Responses,1,202410,02/01/2024,P6,9109753,"-5,249.44 ","5,249.44 ",2100,Electricity,1006,Edwinstowe,11.82 
Nottinghamshire Fire and Resccue Service,102744,EDF Energy,EDF Energy,Operational Responses,1,202410,02/01/2024,P6,9109753,"-5,249.44 ","5,249.44 ",2100,Electricity,1006,Edwinstowe,"4,364.68 "
Nottinghamshire Fire and Resccue Service,102744,EDF Energy,EDF Energy,Operational Responses,1,202410,04/01/2024,P6,9109830,"-4,769.16 ","4,769.16 ",2100,Electricity,1008,Worksop,"3,974.30 "
Nottinghamshire Fire and Resccue Service,102744,EDF Energy,EDF Energy,Operational Responses,1,202410,08/01/2024,P6,9109831,-677.48 ,677.48 ,2100,Electricity,1015,Collingham,564.56 
Nottinghamshire Fire and Resccue Service,102744,EDF Energy,EDF Energy,Operational Responses,1,202410,08/01/2024,P6,9109832,-767.69 ,767.69 ,2100,Electricity,1028,East Leake,639.74 
Nottinghamshire Fire and Resccue Service,102744,EDF Energy,EDF Energy,Operational Responses,1,202410,08/01/2024,P6,9109833,-789.22 ,789.22 ,2100,Electricity,1007,Warsop,657.69 
Nottinghamshire Fire and Resccue Service,102744,EDF Energy,EDF Energy,Operational Responses,1,202410,04/01/2024,P6,9109835,"-13,598.46 ","13,598.46 ",2100,Electricity,1005,Ashfield,"11,332.05 "
Nottinghamshire Fire and Resccue Service,102744,EDF Energy,EDF Energy,Operational Responses,1,202410,10/01/2024,P6,9109846,"-38,047.73 ","38,047.73 ",2100,Electricity,1003,London Road,"3,873.58 "
Nottinghamshire Fire and Resccue Service,102744,EDF Energy,EDF Energy,Operational Responses,1,202410,10/01/2024,P6,9109846,"-38,047.73 ","38,047.73 ",2100,Electricity,1012,Retford,"2,813.98 "
Nottinghamshire Fire and Resccue Service,102744,EDF Energy,EDF Energy,Operational Responses,1,202410,10/01/2024,P6,9109846,"-38,047.73 ","38,047.73 ",2100,Electricity,1016,Newark,"2,560.31 "
Nottinghamshire Fire and Resccue Service,102744,EDF Energy,EDF Energy,Operational Responses,1,202410,10/01/2024,P6,9109846,"-38,047.73 ","38,047.73 ",2100,Electricity,1027,Carlton,"4,514.37 "
Nottinghamshire Fire and Resccue Service,102744,EDF Energy,EDF Energy,Operational Responses,1,202410,10/01/2024,P6,9109846,"-38,047.73 ","38,047.73 ",2100,Electricity,1029,Highfields Station,"10,489.33 "
Nottinghamshire Fire and Resccue Service,102744,EDF Energy,EDF Energy,Management & Support Services,1,202410,10/01/2024,P6,9109846,"-38,047.73 ","38,047.73 ",2100,Electricity,1030,Service Development Centre,"5,093.67 "
Nottinghamshire Fire and Resccue Service,102744,EDF Energy,EDF Energy,Management & Support Services,1,202410,10/01/2024,P6,9109846,"-38,047.73 ","38,047.73 ",2100,Electricity,1035,Headquarters,"2,217.37 "
Nottinghamshire Fire and Resccue Service,102744,EDF Energy,EDF Energy,Management & Support Services,1,202410,10/01/2024,P6,9109846,"-38,047.73 ","38,047.73 ",2100,Electricity,2087,Estates Department (Previously Premises),172.59 
Nottinghamshire Fire and Resccue Service,102744,EDF Energy,EDF Energy,Operational Responses,1,202410,09/01/2024,P6,9109856,"-2,116.47 ","2,116.47 ",2100,Electricity,1011,Misterton,1.78 
Nottinghamshire Fire and Resccue Service,102744,EDF Energy,EDF Energy,Operational Responses,1,202410,09/01/2024,P6,9109856,"-2,116.47 ","2,116.47 ",2100,Electricity,1011,Misterton,"1,762.24 "
Nottinghamshire Fire and Resccue Service,102744,EDF Energy,EDF Energy,Operational Responses,1,202410,12/01/2024,P6,9109912,-719.68 ,719.68 ,2100,Electricity,1028,East Leake,599.73 
Nottinghamshire Fire and Resccue Service,102744,EDF Energy,EDF Energy,Operational Responses,1,202410,15/01/2024,P6,9109913,"-8,640.80 ","8,640.80 ",2100,Electricity,1019,West Bridgford,0.55 
Nottinghamshire Fire and Resccue Service,102744,EDF Energy,EDF Energy,Operational Responses,1,202410,15/01/2024,P6,9109913,"-8,640.80 ","8,640.80 ",2100,Electricity,1019,West Bridgford,"7,200.22 "
Nottinghamshire Fire and Resccue Service,102744,EDF Energy,EDF Energy,Operational Responses,1,202410,27/12/2023,P6,9109741,"4,163.50 ","-4,163.50 ",2100,Electricity,1008,Worksop,"-3,469.58 "
Nottinghamshire Fire and Resccue Service,102744,EDF Energy,EDF Energy,Operational Responses,1,202410,12/01/2024,P6,9109937,767.69 ,-767.69 ,2100,Electricity,1028,East Leake,-639.74 
Nottinghamshire Fire and Resccue Service,100055,Nottingham City Council,Nottingham City Council,Operational Responses,4,202410,08/01/2024,P6,9109834,"-4,737.62 ","4,737.62 ",2101,Gas,1003,London Road,"3,948.02 "
Nottinghamshire Fire and Resccue Service,104098,Total Gas & Power Limited,Total Gas & Power Limited,Operational Responses,5,202410,12/01/2024,P6,9109855,"-3,087.78 ","3,087.78 ",2101,Gas,1020,Stockhill,"2,573.15 "
Nottinghamshire Fire and Resccue Service,104098,Total Gas & Power Limited,Total Gas & Power Limited,Operational Responses,5,202410,12/01/2024,P6,9109890,"-6,251.71 ","6,251.71 ",2101,Gas,1029,Highfields Station,"5,209.75 "
Nottinghamshire Fire and Resccue Service,104098,Total Gas & Power Limited,Total Gas & Power Limited,Operational Responses,5,202410,12/01/2024,P6,9109891,"-1,973.87 ","1,973.87 ",2101,Gas,1012,Retford,"1,644.90 "
Nottinghamshire Fire and Resccue Service,104098,Total Gas & Power Limited,Total Gas & Power Limited,Operational Responses,5,202410,12/01/2024,P6,9109892,"-3,353.59 ","3,353.59 ",2101,Gas,1026,Arnold,"2,794.66 "
Nottinghamshire Fire and Resccue Service,104098,Total Gas & Power Limited,Total Gas & Power Limited,Operational Responses,5,202410,12/01/2024,P6,9109893,"-2,597.20 ","2,597.20 ",2101,Gas,1019,West Bridgford,"2,164.33 "
Nottinghamshire Fire and Resccue Service,104098,Total Gas & Power Limited,Total Gas & Power Limited,Operational Responses,5,202410,12/01/2024,P6,9109894,"-1,033.19 ","1,033.19 ",2101,Gas,1024,Eastwood,860.99 
Nottinghamshire Fire and Resccue Service,104098,Total Gas & Power Limited,Total Gas & Power Limited,Prevention & Education,5,202410,12/01/2024,P6,9109896,"-1,238.19 ","1,238.19 ",2101,Gas,1036,Clifton Community Safety Centre,"1,031.82 "
Nottinghamshire Fire and Resccue Service,104098,Total Gas & Power Limited,Total Gas & Power Limited,Operational Responses,5,202410,12/01/2024,P6,9109897,"-1,030.14 ","1,030.14 ",2101,Gas,1016,Newark,858.45 
Nottinghamshire Fire and Resccue Service,104098,Total Gas & Power Limited,Total Gas & Power Limited,Operational Responses,5,202410,12/01/2024,P6,9109898,"-1,927.45 ","1,927.45 ",2101,Gas,1001,Mansfield,"1,606.21 "
Nottinghamshire Fire and Resccue Service,104098,Total Gas & Power Limited,Total Gas & Power Limited,Operational Responses,5,202410,12/01/2024,P6,9109900,"-2,248.71 ","2,248.71 ",2101,Gas,1006,Edwinstowe,"1,873.92 "
Nottinghamshire Fire and Resccue Service,104098,Total Gas & Power Limited,Total Gas & Power Limited,Operational Responses,5,202410,12/01/2024,P6,9109901,"-4,684.50 ","4,684.50 ",2101,Gas,1005,Ashfield,"3,903.76 "
Nottinghamshire Fire and Resccue Service,104098,Total Gas & Power Limited,Total Gas & Power Limited,Operational Responses,5,202410,12/01/2024,P6,9109902,-793.50 ,793.50 ,2101,Gas,1010,Harworth,661.25 
Nottinghamshire Fire and Resccue Service,104098,Total Gas & Power Limited,Total Gas & Power Limited,Operational Responses,5,202410,12/01/2024,P6,9109903,-609.77 ,609.77 ,2101,Gas,1015,Collingham,508.15 
Nottinghamshire Fire and Resccue Service,104098,Total Gas & Power Limited,Total Gas & Power Limited,Operational Responses,5,202410,12/01/2024,P6,9109904,-406.61 ,406.61 ,2101,Gas,1014,Southwell,387.25 
Nottinghamshire Fire and Resccue Service,104098,Total Gas & Power Limited,Total Gas & Power Limited,Operational Responses,5,202410,12/01/2024,P6,9109905,-430.46 ,430.46 ,2101,Gas,1007,Warsop,409.96 
Nottinghamshire Fire and Resccue Service,104098,Total Gas & Power Limited,Total Gas & Power Limited,Operational Responses,5,202410,12/01/2024,P6,9109906,-387.36 ,387.36 ,2101,Gas,1002,Blidworth,368.91 
Nottinghamshire Fire and Resccue Service,104098,Total Gas & Power Limited,Total Gas & Power Limited,Operational Responses,5,202410,12/01/2024,P6,9109909,-986.78 ,986.78 ,2101,Gas,1017,Bingham,822.32 
Nottinghamshire Fire and Resccue Service,104098,Total Gas & Power Limited,Total Gas & Power Limited,Management & Support Services,5,202410,12/01/2024,P6,9109910,"-2,379.99 ","2,379.99 ",2101,Gas,1030,Service Development Centre,"1,983.33 "
Nottinghamshire Fire and Resccue Service,104098,Total Gas & Power Limited,Total Gas & Power Limited,Operational Responses,5,202410,13/01/2024,P6,9109911,"-5,780.78 ","5,780.78 ",2101,Gas,1001,Mansfield,"4,817.32 "
Nottinghamshire Fire and Resccue Service,104256,Advanced Demand Side Management Limited,Advanced Demand Side Management Limited,Operational Responses,5,202410,01/12/2023,P6,9109754,"-3,605.55 ","3,605.55 ",2103,Water Rates,1001,Mansfield,-41.17 
Nottinghamshire Fire and Resccue Service,104256,Advanced Demand Side Management Limited,Advanced Demand Side Management Limited,Operational Responses,5,202410,01/12/2023,P6,9109754,"-3,605.55 ","3,605.55 ",2103,Water Rates,1001,Mansfield,-39.82 
Nottinghamshire Fire and Resccue Service,104256,Advanced Demand Side Management Limited,Advanced Demand Side Management Limited,Operational Responses,5,202410,01/12/2023,P6,9109754,"-3,605.55 ","3,605.55 ",2103,Water Rates,1001,Mansfield,3.89 
Nottinghamshire Fire and Resccue Service,104256,Advanced Demand Side Management Limited,Advanced Demand Side Management Limited,Operational Responses,5,202410,01/12/2023,P6,9109754,"-3,605.55 ","3,605.55 ",2103,Water Rates,1001,Mansfield,3.99 
Nottinghamshire Fire and Resccue Service,104256,Advanced Demand Side Management Limited,Advanced Demand Side Management Limited,Operational Responses,5,202410,01/12/2023,P6,9109754,"-3,605.55 ","3,605.55 ",2103,Water Rates,1001,Mansfield,4.13 
Nottinghamshire Fire and Resccue Service,104256,Advanced Demand Side Management Limited,Advanced Demand Side Management Limited,Operational Responses,5,202410,01/12/2023,P6,9109754,"-3,605.55 ","3,605.55 ",2103,Water Rates,1001,Mansfield,25.17 
Nottinghamshire Fire and Resccue Service,104256,Advanced Demand Side Management Limited,Advanced Demand Side Management Limited,Operational Responses,5,202410,01/12/2023,P6,9109754,"-3,605.55 ","3,605.55 ",2103,Water Rates,1002,Blidworth,2.40 
Nottinghamshire Fire and Resccue Service,104256,Advanced Demand Side Management Limited,Advanced Demand Side Management Limited,Operational Responses,5,202410,01/12/2023,P6,9109754,"-3,605.55 ","3,605.55 ",2103,Water Rates,1003,London Road,68.21 
Nottinghamshire Fire and Resccue Service,104256,Advanced Demand Side Management Limited,Advanced Demand Side Management Limited,Operational Responses,5,202410,01/12/2023,P6,9109754,"-3,605.55 ","3,605.55 ",2103,Water Rates,1005,Ashfield,58.63 
Nottinghamshire Fire and Resccue Service,104256,Advanced Demand Side Management Limited,Advanced Demand Side Management Limited,Operational Responses,5,202410,01/12/2023,P6,9109754,"-3,605.55 ","3,605.55 ",2103,Water Rates,1006,Edwinstowe,-55.02 
Nottinghamshire Fire and Resccue Service,104256,Advanced Demand Side Management Limited,Advanced Demand Side Management Limited,Operational Responses,5,202410,01/12/2023,P6,9109754,"-3,605.55 ","3,605.55 ",2103,Water Rates,1006,Edwinstowe,53.32 
Nottinghamshire Fire and Resccue Service,104256,Advanced Demand Side Management Limited,Advanced Demand Side Management Limited,Operational Responses,5,202410,01/12/2023,P6,9109754,"-3,605.55 ","3,605.55 ",2103,Water Rates,1006,Edwinstowe,54.30 
Nottinghamshire Fire and Resccue Service,104256,Advanced Demand Side Management Limited,Advanced Demand Side Management Limited,Operational Responses,5,202410,01/12/2023,P6,9109754,"-3,605.55 ","3,605.55 ",2103,Water Rates,1007,Warsop,-18.99 
Nottinghamshire Fire and Resccue Service,104256,Advanced Demand Side Management Limited,Advanced Demand Side Management Limited,Operational Responses,5,202410,01/12/2023,P6,9109754,"-3,605.55 ","3,605.55 ",2103,Water Rates,1007,Warsop,18.91 
Nottinghamshire Fire and Resccue Service,104256,Advanced Demand Side Management Limited,Advanced Demand Side Management Limited,Operational Responses,5,202410,01/12/2023,P6,9109754,"-3,605.55 ","3,605.55 ",2103,Water Rates,1007,Warsop,21.75 
Nottinghamshire Fire and Resccue Service,104256,Advanced Demand Side Management Limited,Advanced Demand Side Management Limited,Operational Responses,5,202410,01/12/2023,P6,9109754,"-3,605.55 ","3,605.55 ",2103,Water Rates,1008,Worksop,547.36 
Nottinghamshire Fire and Resccue Service,104256,Advanced Demand Side Management Limited,Advanced Demand Side Management Limited,Operational Responses,5,202410,01/12/2023,P6,9109754,"-3,605.55 ","3,605.55 ",2103,Water Rates,1010,Harworth,-24.06 
Nottinghamshire Fire and Resccue Service,104256,Advanced Demand Side Management Limited,Advanced Demand Side Management Limited,Operational Responses,5,202410,01/12/2023,P6,9109754,"-3,605.55 ","3,605.55 ",2103,Water Rates,1010,Harworth,-20.36 
Nottinghamshire Fire and Resccue Service,104256,Advanced Demand Side Management Limited,Advanced Demand Side Management Limited,Operational Responses,5,202410,01/12/2023,P6,9109754,"-3,605.55 ","3,605.55 ",2103,Water Rates,1010,Harworth,15.46 
Nottinghamshire Fire and Resccue Service,104256,Advanced Demand Side Management Limited,Advanced Demand Side Management Limited,Operational Responses,5,202410,01/12/2023,P6,9109754,"-3,605.55 ","3,605.55 ",2103,Water Rates,1010,Harworth,16.32 
Nottinghamshire Fire and Resccue Service,104256,Advanced Demand Side Management Limited,Advanced Demand Side Management Limited,Operational Responses,5,202410,01/12/2023,P6,9109754,"-3,605.55 ","3,605.55 ",2103,Water Rates,1010,Harworth,17.44 
Nottinghamshire Fire and Resccue Service,104256,Advanced Demand Side Management Limited,Advanced Demand Side Management Limited,Operational Responses,5,202410,01/12/2023,P6,9109754,"-3,605.55 ","3,605.55 ",2103,Water Rates,1011,Misterton,7.74 
Nottinghamshire Fire and Resccue Service,104256,Advanced Demand Side Management Limited,Advanced Demand Side Management Limited,Operational Responses,5,202410,01/12/2023,P6,9109754,"-3,605.55 ","3,605.55 ",2103,Water Rates,1012,Retford,35.21 
Nottinghamshire Fire and Resccue Service,104256,Advanced Demand Side Management Limited,Advanced Demand Side Management Limited,Operational Responses,5,202410,01/12/2023,P6,9109754,"-3,605.55 ","3,605.55 ",2103,Water Rates,1013,Tuxford,-60.87 
Nottinghamshire Fire and Resccue Service,104256,Advanced Demand Side Management Limited,Advanced Demand Side Management Limited,Operational Responses,5,202410,01/12/2023,P6,9109754,"-3,605.55 ","3,605.55 ",2103,Water Rates,1013,Tuxford,-17.12 
Nottinghamshire Fire and Resccue Service,104256,Advanced Demand Side Management Limited,Advanced Demand Side Management Limited,Operational Responses,5,202410,01/12/2023,P6,9109754,"-3,605.55 ","3,605.55 ",2103,Water Rates,1013,Tuxford,17.12 
Nottinghamshire Fire and Resccue Service,104256,Advanced Demand Side Management Limited,Advanced Demand Side Management Limited,Operational Responses,5,202410,01/12/2023,P6,9109754,"-3,605.55 ","3,605.55 ",2103,Water Rates,1013,Tuxford,19.15 
Nottinghamshire Fire and Resccue Service,104256,Advanced Demand Side Management Limited,Advanced Demand Side Management Limited,Operational Responses,5,202410,01/12/2023,P6,9109754,"-3,605.55 ","3,605.55 ",2103,Water Rates,1013,Tuxford,45.50 
Nottinghamshire Fire and Resccue Service,104256,Advanced Demand Side Management Limited,Advanced Demand Side Management Limited,Operational Responses,5,202410,01/12/2023,P6,9109754,"-3,605.55 ","3,605.55 ",2103,Water Rates,1014,Southwell,17.57 
Nottinghamshire Fire and Resccue Service,104256,Advanced Demand Side Management Limited,Advanced Demand Side Management Limited,Operational Responses,5,202410,01/12/2023,P6,9109754,"-3,605.55 ","3,605.55 ",2103,Water Rates,1015,Collingham,23.11 
Nottinghamshire Fire and Resccue Service,104256,Advanced Demand Side Management Limited,Advanced Demand Side Management Limited,Operational Responses,5,202410,01/12/2023,P6,9109754,"-3,605.55 ","3,605.55 ",2103,Water Rates,1016,Newark,-97.57 
Nottinghamshire Fire and Resccue Service,104256,Advanced Demand Side Management Limited,Advanced Demand Side Management Limited,Operational Responses,5,202410,01/12/2023,P6,9109754,"-3,605.55 ","3,605.55 ",2103,Water Rates,1016,Newark,-96.69 
Nottinghamshire Fire and Resccue Service,104256,Advanced Demand Side Management Limited,Advanced Demand Side Management Limited,Operational Responses,5,202410,01/12/2023,P6,9109754,"-3,605.55 ","3,605.55 ",2103,Water Rates,1016,Newark,-94.42 
Nottinghamshire Fire and Resccue Service,104256,Advanced Demand Side Management Limited,Advanced Demand Side Management Limited,Operational Responses,5,202410,01/12/2023,P6,9109754,"-3,605.55 ","3,605.55 ",2103,Water Rates,1016,Newark,-5.27 
Nottinghamshire Fire and Resccue Service,104256,Advanced Demand Side Management Limited,Advanced Demand Side Management Limited,Operational Responses,5,202410,01/12/2023,P6,9109754,"-3,605.55 ","3,605.55 ",2103,Water Rates,1016,Newark,-2.69 
Nottinghamshire Fire and Resccue Service,104256,Advanced Demand Side Management Limited,Advanced Demand Side Management Limited,Operational Responses,5,202410,01/12/2023,P6,9109754,"-3,605.55 ","3,605.55 ",2103,Water Rates,1016,Newark,-2.59 
Nottinghamshire Fire and Resccue Service,104256,Advanced Demand Side Management Limited,Advanced Demand Side Management Limited,Operational Responses,5,202410,01/12/2023,P6,9109754,"-3,605.55 ","3,605.55 ",2103,Water Rates,1016,Newark,-1.92 
Nottinghamshire Fire and Resccue Service,104256,Advanced Demand Side Management Limited,Advanced Demand Side Management Limited,Operational Responses,5,202410,01/12/2023,P6,9109754,"-3,605.55 ","3,605.55 ",2103,Water Rates,1016,Newark,-1.73 
Nottinghamshire Fire and Resccue Service,104256,Advanced Demand Side Management Limited,Advanced Demand Side Management Limited,Operational Responses,5,202410,01/12/2023,P6,9109754,"-3,605.55 ","3,605.55 ",2103,Water Rates,1016,Newark,-0.87 
Nottinghamshire Fire and Resccue Service,104256,Advanced Demand Side Management Limited,Advanced Demand Side Management Limited,Operational Responses,5,202410,01/12/2023,P6,9109754,"-3,605.55 ","3,605.55 ",2103,Water Rates,1016,Newark,71.78 
Nottinghamshire Fire and Resccue Service,104256,Advanced Demand Side Management Limited,Advanced Demand Side Management Limited,Operational Responses,5,202410,01/12/2023,P6,9109754,"-3,605.55 ","3,605.55 ",2103,Water Rates,1016,Newark,89.27 
Nottinghamshire Fire and Resccue Service,104256,Advanced Demand Side Management Limited,Advanced Demand Side Management Limited,Operational Responses,5,202410,01/12/2023,P6,9109754,"-3,605.55 ","3,605.55 ",2103,Water Rates,1016,Newark,91.88 
Nottinghamshire Fire and Resccue Service,104256,Advanced Demand Side Management Limited,Advanced Demand Side Management Limited,Operational Responses,5,202410,01/12/2023,P6,9109754,"-3,605.55 ","3,605.55 ",2103,Water Rates,1016,Newark,92.25 
Nottinghamshire Fire and Resccue Service,104256,Advanced Demand Side Management Limited,Advanced Demand Side Management Limited,Operational Responses,5,202410,01/12/2023,P6,9109754,"-3,605.55 ","3,605.55 ",2103,Water Rates,1017,Bingham,-14.14 
Nottinghamshire Fire and Resccue Service,104256,Advanced Demand Side Management Limited,Advanced Demand Side Management Limited,Operational Responses,5,202410,01/12/2023,P6,9109754,"-3,605.55 ","3,605.55 ",2103,Water Rates,1017,Bingham,12.16 
Nottinghamshire Fire and Resccue Service,104256,Advanced Demand Side Management Limited,Advanced Demand Side Management Limited,Operational Responses,5,202410,01/12/2023,P6,9109754,"-3,605.55 ","3,605.55 ",2103,Water Rates,1017,Bingham,26.47 
Nottinghamshire Fire and Resccue Service,104256,Advanced Demand Side Management Limited,Advanced Demand Side Management Limited,Operational Responses,5,202410,01/12/2023,P6,9109754,"-3,605.55 ","3,605.55 ",2103,Water Rates,1019,West Bridgford,-170.35 
Nottinghamshire Fire and Resccue Service,104256,Advanced Demand Side Management Limited,Advanced Demand Side Management Limited,Operational Responses,5,202410,01/12/2023,P6,9109754,"-3,605.55 ","3,605.55 ",2103,Water Rates,1019,West Bridgford,124.06 
Nottinghamshire Fire and Resccue Service,104256,Advanced Demand Side Management Limited,Advanced Demand Side Management Limited,Operational Responses,5,202410,01/12/2023,P6,9109754,"-3,605.55 ","3,605.55 ",2103,Water Rates,1019,West Bridgford,159.28 
Nottinghamshire Fire and Resccue Service,104256,Advanced Demand Side Management Limited,Advanced Demand Side Management Limited,Operational Responses,5,202410,01/12/2023,P6,9109754,"-3,605.55 ","3,605.55 ",2103,Water Rates,1020,Stockhill,6.40 
Nottinghamshire Fire and Resccue Service,104256,Advanced Demand Side Management Limited,Advanced Demand Side Management Limited,Operational Responses,5,202410,01/12/2023,P6,9109754,"-3,605.55 ","3,605.55 ",2103,Water Rates,1023,Stapleford,33.80 
Nottinghamshire Fire and Resccue Service,104256,Advanced Demand Side Management Limited,Advanced Demand Side Management Limited,Operational Responses,5,202410,01/12/2023,P6,9109754,"-3,605.55 ","3,605.55 ",2103,Water Rates,1024,Eastwood,22.15 
Nottinghamshire Fire and Resccue Service,104256,Advanced Demand Side Management Limited,Advanced Demand Side Management Limited,Operational Responses,5,202410,01/12/2023,P6,9109754,"-3,605.55 ","3,605.55 ",2103,Water Rates,1026,Arnold,88.37 
Nottinghamshire Fire and Resccue Service,104256,Advanced Demand Side Management Limited,Advanced Demand Side Management Limited,Operational Responses,5,202410,01/12/2023,P6,9109754,"-3,605.55 ","3,605.55 ",2103,Water Rates,1027,Carlton,-0.31 
Nottinghamshire Fire and Resccue Service,104256,Advanced Demand Side Management Limited,Advanced Demand Side Management Limited,Operational Responses,5,202410,01/12/2023,P6,9109754,"-3,605.55 ","3,605.55 ",2103,Water Rates,1027,Carlton,2.57 
Nottinghamshire Fire and Resccue Service,104256,Advanced Demand Side Management Limited,Advanced Demand Side Management Limited,Operational Responses,5,202410,01/12/2023,P6,9109754,"-3,605.55 ","3,605.55 ",2103,Water Rates,1027,Carlton,16.70 
Nottinghamshire Fire and Resccue Service,104256,Advanced Demand Side Management Limited,Advanced Demand Side Management Limited,Operational Responses,5,202410,01/12/2023,P6,9109754,"-3,605.55 ","3,605.55 ",2103,Water Rates,1028,East Leake,14.07 
Nottinghamshire Fire and Resccue Service,104256,Advanced Demand Side Management Limited,Advanced Demand Side Management Limited,Operational Responses,5,202410,01/12/2023,P6,9109754,"-3,605.55 ","3,605.55 ",2103,Water Rates,1029,Highfields Station,275.87 
Nottinghamshire Fire and Resccue Service,104256,Advanced Demand Side Management Limited,Advanced Demand Side Management Limited,Management & Support Services,5,202410,01/12/2023,P6,9109754,"-3,605.55 ","3,605.55 ",2103,Water Rates,1030,Service Development Centre,496.48 
Nottinghamshire Fire and Resccue Service,104256,Advanced Demand Side Management Limited,Advanced Demand Side Management Limited,Management & Support Services,5,202410,01/12/2023,P6,9109754,"-3,605.55 ","3,605.55 ",2103,Water Rates,1035,Headquarters,252.14 
Nottinghamshire Fire and Resccue Service,104256,Advanced Demand Side Management Limited,Advanced Demand Side Management Limited,Prevention & Education,5,202410,01/12/2023,P6,9109754,"-3,605.55 ","3,605.55 ",2103,Water Rates,1036,Clifton Community Safety Centre,13.56 
Nottinghamshire Fire and Resccue Service,104256,Advanced Demand Side Management Limited,Advanced Demand Side Management Limited,Operational Responses,5,202410,02/01/2024,P6,9109914,"-6,370.85 ","6,370.85 ",2103,Water Rates,1001,Mansfield,4.03 
Nottinghamshire Fire and Resccue Service,104256,Advanced Demand Side Management Limited,Advanced Demand Side Management Limited,Operational Responses,5,202410,02/01/2024,P6,9109914,"-6,370.85 ","6,370.85 ",2103,Water Rates,1001,Mansfield,26.02 
Nottinghamshire Fire and Resccue Service,104256,Advanced Demand Side Management Limited,Advanced Demand Side Management Limited,Operational Responses,5,202410,02/01/2024,P6,9109914,"-6,370.85 ","6,370.85 ",2103,Water Rates,1002,Blidworth,2.49 
Nottinghamshire Fire and Resccue Service,104256,Advanced Demand Side Management Limited,Advanced Demand Side Management Limited,Operational Responses,5,202410,02/01/2024,P6,9109914,"-6,370.85 ","6,370.85 ",2103,Water Rates,1003,London Road,70.49 
Nottinghamshire Fire and Resccue Service,104256,Advanced Demand Side Management Limited,Advanced Demand Side Management Limited,Operational Responses,5,202410,02/01/2024,P6,9109914,"-6,370.85 ","6,370.85 ",2103,Water Rates,1005,Ashfield,60.61 
Nottinghamshire Fire and Resccue Service,104256,Advanced Demand Side Management Limited,Advanced Demand Side Management Limited,Operational Responses,5,202410,02/01/2024,P6,9109914,"-6,370.85 ","6,370.85 ",2103,Water Rates,1006,Edwinstowe,55.15 
Nottinghamshire Fire and Resccue Service,104256,Advanced Demand Side Management Limited,Advanced Demand Side Management Limited,Operational Responses,5,202410,02/01/2024,P6,9109914,"-6,370.85 ","6,370.85 ",2103,Water Rates,1007,Warsop,18.82 
Nottinghamshire Fire and Resccue Service,104256,Advanced Demand Side Management Limited,Advanced Demand Side Management Limited,Operational Responses,5,202410,02/01/2024,P6,9109914,"-6,370.85 ","6,370.85 ",2103,Water Rates,1008,Worksop,565.61 
Nottinghamshire Fire and Resccue Service,104256,Advanced Demand Side Management Limited,Advanced Demand Side Management Limited,Operational Responses,5,202410,02/01/2024,P6,9109914,"-6,370.85 ","6,370.85 ",2103,Water Rates,1010,Harworth,15.68 
Nottinghamshire Fire and Resccue Service,104256,Advanced Demand Side Management Limited,Advanced Demand Side Management Limited,Operational Responses,5,202410,02/01/2024,P6,9109914,"-6,370.85 ","6,370.85 ",2103,Water Rates,1011,Misterton,7.99 
Nottinghamshire Fire and Resccue Service,104256,Advanced Demand Side Management Limited,Advanced Demand Side Management Limited,Operational Responses,5,202410,02/01/2024,P6,9109914,"-6,370.85 ","6,370.85 ",2103,Water Rates,1012,Retford,36.38 
Nottinghamshire Fire and Resccue Service,104256,Advanced Demand Side Management Limited,Advanced Demand Side Management Limited,Operational Responses,5,202410,02/01/2024,P6,9109914,"-6,370.85 ","6,370.85 ",2103,Water Rates,1013,Tuxford,58.97 
Nottinghamshire Fire and Resccue Service,104256,Advanced Demand Side Management Limited,Advanced Demand Side Management Limited,Operational Responses,5,202410,02/01/2024,P6,9109914,"-6,370.85 ","6,370.85 ",2103,Water Rates,1014,Southwell,19.69 
Nottinghamshire Fire and Resccue Service,104256,Advanced Demand Side Management Limited,Advanced Demand Side Management Limited,Operational Responses,5,202410,02/01/2024,P6,9109914,"-6,370.85 ","6,370.85 ",2103,Water Rates,1015,Collingham,23.87 
Nottinghamshire Fire and Resccue Service,104256,Advanced Demand Side Management Limited,Advanced Demand Side Management Limited,Operational Responses,5,202410,02/01/2024,P6,9109914,"-6,370.85 ","6,370.85 ",2103,Water Rates,1016,Newark,74.18 
Nottinghamshire Fire and Resccue Service,104256,Advanced Demand Side Management Limited,Advanced Demand Side Management Limited,Operational Responses,5,202410,02/01/2024,P6,9109914,"-6,370.85 ","6,370.85 ",2103,Water Rates,1017,Bingham,31.86 
Nottinghamshire Fire and Resccue Service,104256,Advanced Demand Side Management Limited,Advanced Demand Side Management Limited,Operational Responses,5,202410,02/01/2024,P6,9109914,"-6,370.85 ","6,370.85 ",2103,Water Rates,1019,West Bridgford,166.15 
Nottinghamshire Fire and Resccue Service,104256,Advanced Demand Side Management Limited,Advanced Demand Side Management Limited,Operational Responses,5,202410,02/01/2024,P6,9109914,"-6,370.85 ","6,370.85 ",2103,Water Rates,1020,Stockhill,6.62 
Nottinghamshire Fire and Resccue Service,104256,Advanced Demand Side Management Limited,Advanced Demand Side Management Limited,Operational Responses,5,202410,02/01/2024,P6,9109914,"-6,370.85 ","6,370.85 ",2103,Water Rates,1023,Stapleford,34.94 
Nottinghamshire Fire and Resccue Service,104256,Advanced Demand Side Management Limited,Advanced Demand Side Management Limited,Operational Responses,5,202410,02/01/2024,P6,9109914,"-6,370.85 ","6,370.85 ",2103,Water Rates,1024,Eastwood,22.89 
Nottinghamshire Fire and Resccue Service,104256,Advanced Demand Side Management Limited,Advanced Demand Side Management Limited,Operational Responses,5,202410,02/01/2024,P6,9109914,"-6,370.85 ","6,370.85 ",2103,Water Rates,1026,Arnold,91.32 
Nottinghamshire Fire and Resccue Service,104256,Advanced Demand Side Management Limited,Advanced Demand Side Management Limited,Operational Responses,5,202410,02/01/2024,P6,9109914,"-6,370.85 ","6,370.85 ",2103,Water Rates,1027,Carlton,16.04 
Nottinghamshire Fire and Resccue Service,104256,Advanced Demand Side Management Limited,Advanced Demand Side Management Limited,Operational Responses,5,202410,02/01/2024,P6,9109914,"-6,370.85 ","6,370.85 ",2103,Water Rates,1028,East Leake,14.54 
Nottinghamshire Fire and Resccue Service,104256,Advanced Demand Side Management Limited,Advanced Demand Side Management Limited,Operational Responses,5,202410,02/01/2024,P6,9109914,"-6,370.85 ","6,370.85 ",2103,Water Rates,1029,Highfields Station,285.08 
Nottinghamshire Fire and Resccue Service,104256,Advanced Demand Side Management Limited,Advanced Demand Side Management Limited,Management & Support Services,5,202410,02/01/2024,P6,9109914,"-6,370.85 ","6,370.85 ",2103,Water Rates,1030,Service Development Centre,513.04 
Nottinghamshire Fire and Resccue Service,104256,Advanced Demand Side Management Limited,Advanced Demand Side Management Limited,Management & Support Services,5,202410,02/01/2024,P6,9109914,"-6,370.85 ","6,370.85 ",2103,Water Rates,1035,Headquarters,260.56 
Nottinghamshire Fire and Resccue Service,104256,Advanced Demand Side Management Limited,Advanced Demand Side Management Limited,Prevention & Education,5,202410,02/01/2024,P6,9109914,"-6,370.85 ","6,370.85 ",2103,Water Rates,1036,Clifton Community Safety Centre,14.02 
Nottinghamshire Fire and Resccue Service,104256,Advanced Demand Side Management Limited,Advanced Demand Side Management Limited,Operational Responses,5,202410,01/12/2023,P6,9109754,"-3,605.55 ","3,605.55 ",2104,Sewerage and Environmental,1001,Mansfield,-209.52 
Nottinghamshire Fire and Resccue Service,104256,Advanced Demand Side Management Limited,Advanced Demand Side Management Limited,Operational Responses,5,202410,01/12/2023,P6,9109754,"-3,605.55 ","3,605.55 ",2104,Sewerage and Environmental,1001,Mansfield,-202.77 
Nottinghamshire Fire and Resccue Service,104256,Advanced Demand Side Management Limited,Advanced Demand Side Management Limited,Operational Responses,5,202410,01/12/2023,P6,9109754,"-3,605.55 ","3,605.55 ",2104,Sewerage and Environmental,1001,Mansfield,17.41 
Nottinghamshire Fire and Resccue Service,104256,Advanced Demand Side Management Limited,Advanced Demand Side Management Limited,Operational Responses,5,202410,01/12/2023,P6,9109754,"-3,605.55 ","3,605.55 ",2104,Sewerage and Environmental,1001,Mansfield,178.83 
Nottinghamshire Fire and Resccue Service,104256,Advanced Demand Side Management Limited,Advanced Demand Side Management Limited,Operational Responses,5,202410,01/12/2023,P6,9109754,"-3,605.55 ","3,605.55 ",2104,Sewerage and Environmental,1001,Mansfield,178.90 
Nottinghamshire Fire and Resccue Service,104256,Advanced Demand Side Management Limited,Advanced Demand Side Management Limited,Operational Responses,5,202410,01/12/2023,P6,9109754,"-3,605.55 ","3,605.55 ",2104,Sewerage and Environmental,1001,Mansfield,184.86 
Nottinghamshire Fire and Resccue Service,104256,Advanced Demand Side Management Limited,Advanced Demand Side Management Limited,Operational Responses,5,202410,01/12/2023,P6,9109754,"-3,605.55 ","3,605.55 ",2104,Sewerage and Environmental,1002,Blidworth,11.81 
Nottinghamshire Fire and Resccue Service,104256,Advanced Demand Side Management Limited,Advanced Demand Side Management Limited,Operational Responses,5,202410,01/12/2023,P6,9109754,"-3,605.55 ","3,605.55 ",2104,Sewerage and Environmental,1003,London Road,45.90 
Nottinghamshire Fire and Resccue Service,104256,Advanced Demand Side Management Limited,Advanced Demand Side Management Limited,Operational Responses,5,202410,01/12/2023,P6,9109754,"-3,605.55 ","3,605.55 ",2104,Sewerage and Environmental,1005,Ashfield,91.40 
Nottinghamshire Fire and Resccue Service,104256,Advanced Demand Side Management Limited,Advanced Demand Side Management Limited,Operational Responses,5,202410,01/12/2023,P6,9109754,"-3,605.55 ","3,605.55 ",2104,Sewerage and Environmental,1006,Edwinstowe,-144.26 
Nottinghamshire Fire and Resccue Service,104256,Advanced Demand Side Management Limited,Advanced Demand Side Management Limited,Operational Responses,5,202410,01/12/2023,P6,9109754,"-3,605.55 ","3,605.55 ",2104,Sewerage and Environmental,1006,Edwinstowe,139.67 
Nottinghamshire Fire and Resccue Service,104256,Advanced Demand Side Management Limited,Advanced Demand Side Management Limited,Operational Responses,5,202410,01/12/2023,P6,9109754,"-3,605.55 ","3,605.55 ",2104,Sewerage and Environmental,1006,Edwinstowe,143.79 
Nottinghamshire Fire and Resccue Service,104256,Advanced Demand Side Management Limited,Advanced Demand Side Management Limited,Operational Responses,5,202410,01/12/2023,P6,9109754,"-3,605.55 ","3,605.55 ",2104,Sewerage and Environmental,1007,Warsop,-13.30 
Nottinghamshire Fire and Resccue Service,104256,Advanced Demand Side Management Limited,Advanced Demand Side Management Limited,Operational Responses,5,202410,01/12/2023,P6,9109754,"-3,605.55 ","3,605.55 ",2104,Sewerage and Environmental,1007,Warsop,13.23 
Nottinghamshire Fire and Resccue Service,104256,Advanced Demand Side Management Limited,Advanced Demand Side Management Limited,Operational Responses,5,202410,01/12/2023,P6,9109754,"-3,605.55 ","3,605.55 ",2104,Sewerage and Environmental,1007,Warsop,15.14 
Nottinghamshire Fire and Resccue Service,104256,Advanced Demand Side Management Limited,Advanced Demand Side Management Limited,Operational Responses,5,202410,01/12/2023,P6,9109754,"-3,605.55 ","3,605.55 ",2104,Sewerage and Environmental,1008,Worksop,541.00 
Nottinghamshire Fire and Resccue Service,104256,Advanced Demand Side Management Limited,Advanced Demand Side Management Limited,Operational Responses,5,202410,01/12/2023,P6,9109754,"-3,605.55 ","3,605.55 ",2104,Sewerage and Environmental,1010,Harworth,-16.68 
Nottinghamshire Fire and Resccue Service,104256,Advanced Demand Side Management Limited,Advanced Demand Side Management Limited,Operational Responses,5,202410,01/12/2023,P6,9109754,"-3,605.55 ","3,605.55 ",2104,Sewerage and Environmental,1010,Harworth,-14.21 
Nottinghamshire Fire and Resccue Service,104256,Advanced Demand Side Management Limited,Advanced Demand Side Management Limited,Operational Responses,5,202410,01/12/2023,P6,9109754,"-3,605.55 ","3,605.55 ",2104,Sewerage and Environmental,1010,Harworth,10.94 
Nottinghamshire Fire and Resccue Service,104256,Advanced Demand Side Management Limited,Advanced Demand Side Management Limited,Operational Responses,5,202410,01/12/2023,P6,9109754,"-3,605.55 ","3,605.55 ",2104,Sewerage and Environmental,1010,Harworth,11.51 
Nottinghamshire Fire and Resccue Service,104256,Advanced Demand Side Management Limited,Advanced Demand Side Management Limited,Operational Responses,5,202410,01/12/2023,P6,9109754,"-3,605.55 ","3,605.55 ",2104,Sewerage and Environmental,1010,Harworth,12.28 
Nottinghamshire Fire and Resccue Service,104256,Advanced Demand Side Management Limited,Advanced Demand Side Management Limited,Operational Responses,5,202410,01/12/2023,P6,9109754,"-3,605.55 ","3,605.55 ",2104,Sewerage and Environmental,1011,Misterton,40.08 
Nottinghamshire Fire and Resccue Service,104256,Advanced Demand Side Management Limited,Advanced Demand Side Management Limited,Operational Responses,5,202410,01/12/2023,P6,9109754,"-3,605.55 ","3,605.55 ",2104,Sewerage and Environmental,1012,Retford,26.17 
Nottinghamshire Fire and Resccue Service,104256,Advanced Demand Side Management Limited,Advanced Demand Side Management Limited,Operational Responses,5,202410,01/12/2023,P6,9109754,"-3,605.55 ","3,605.55 ",2104,Sewerage and Environmental,1012,Retford,103.01 
Nottinghamshire Fire and Resccue Service,104256,Advanced Demand Side Management Limited,Advanced Demand Side Management Limited,Operational Responses,5,202410,01/12/2023,P6,9109754,"-3,605.55 ","3,605.55 ",2104,Sewerage and Environmental,1013,Tuxford,-150.27 
Nottinghamshire Fire and Resccue Service,104256,Advanced Demand Side Management Limited,Advanced Demand Side Management Limited,Operational Responses,5,202410,01/12/2023,P6,9109754,"-3,605.55 ","3,605.55 ",2104,Sewerage and Environmental,1013,Tuxford,-116.54 
Nottinghamshire Fire and Resccue Service,104256,Advanced Demand Side Management Limited,Advanced Demand Side Management Limited,Operational Responses,5,202410,01/12/2023,P6,9109754,"-3,605.55 ","3,605.55 ",2104,Sewerage and Environmental,1013,Tuxford,116.54 
Nottinghamshire Fire and Resccue Service,104256,Advanced Demand Side Management Limited,Advanced Demand Side Management Limited,Operational Responses,5,202410,01/12/2023,P6,9109754,"-3,605.55 ","3,605.55 ",2104,Sewerage and Environmental,1013,Tuxford,121.42 
Nottinghamshire Fire and Resccue Service,104256,Advanced Demand Side Management Limited,Advanced Demand Side Management Limited,Operational Responses,5,202410,01/12/2023,P6,9109754,"-3,605.55 ","3,605.55 ",2104,Sewerage and Environmental,1013,Tuxford,136.17 
Nottinghamshire Fire and Resccue Service,104256,Advanced Demand Side Management Limited,Advanced Demand Side Management Limited,Operational Responses,5,202410,01/12/2023,P6,9109754,"-3,605.55 ","3,605.55 ",2104,Sewerage and Environmental,1014,Southwell,86.10 
Nottinghamshire Fire and Resccue Service,104256,Advanced Demand Side Management Limited,Advanced Demand Side Management Limited,Operational Responses,5,202410,01/12/2023,P6,9109754,"-3,605.55 ","3,605.55 ",2104,Sewerage and Environmental,1015,Collingham,67.91 
Nottinghamshire Fire and Resccue Service,104256,Advanced Demand Side Management Limited,Advanced Demand Side Management Limited,Operational Responses,5,202410,01/12/2023,P6,9109754,"-3,605.55 ","3,605.55 ",2104,Sewerage and Environmental,1016,Newark,-413.07 
Nottinghamshire Fire and Resccue Service,104256,Advanced Demand Side Management Limited,Advanced Demand Side Management Limited,Operational Responses,5,202410,01/12/2023,P6,9109754,"-3,605.55 ","3,605.55 ",2104,Sewerage and Environmental,1016,Newark,-412.48 
Nottinghamshire Fire and Resccue Service,104256,Advanced Demand Side Management Limited,Advanced Demand Side Management Limited,Operational Responses,5,202410,01/12/2023,P6,9109754,"-3,605.55 ","3,605.55 ",2104,Sewerage and Environmental,1016,Newark,-399.76 
Nottinghamshire Fire and Resccue Service,104256,Advanced Demand Side Management Limited,Advanced Demand Side Management Limited,Operational Responses,5,202410,01/12/2023,P6,9109754,"-3,605.55 ","3,605.55 ",2104,Sewerage and Environmental,1016,Newark,-361.87 
Nottinghamshire Fire and Resccue Service,104256,Advanced Demand Side Management Limited,Advanced Demand Side Management Limited,Operational Responses,5,202410,01/12/2023,P6,9109754,"-3,605.55 ","3,605.55 ",2104,Sewerage and Environmental,1016,Newark,-183.90 
Nottinghamshire Fire and Resccue Service,104256,Advanced Demand Side Management Limited,Advanced Demand Side Management Limited,Operational Responses,5,202410,01/12/2023,P6,9109754,"-3,605.55 ","3,605.55 ",2104,Sewerage and Environmental,1016,Newark,-177.97 
Nottinghamshire Fire and Resccue Service,104256,Advanced Demand Side Management Limited,Advanced Demand Side Management Limited,Operational Responses,5,202410,01/12/2023,P6,9109754,"-3,605.55 ","3,605.55 ",2104,Sewerage and Environmental,1016,Newark,-167.39 
Nottinghamshire Fire and Resccue Service,104256,Advanced Demand Side Management Limited,Advanced Demand Side Management Limited,Operational Responses,5,202410,01/12/2023,P6,9109754,"-3,605.55 ","3,605.55 ",2104,Sewerage and Environmental,1016,Newark,-151.19 
Nottinghamshire Fire and Resccue Service,104256,Advanced Demand Side Management Limited,Advanced Demand Side Management Limited,Operational Responses,5,202410,01/12/2023,P6,9109754,"-3,605.55 ","3,605.55 ",2104,Sewerage and Environmental,1016,Newark,-75.59 
Nottinghamshire Fire and Resccue Service,104256,Advanced Demand Side Management Limited,Advanced Demand Side Management Limited,Operational Responses,5,202410,01/12/2023,P6,9109754,"-3,605.55 ","3,605.55 ",2104,Sewerage and Environmental,1016,Newark,384.68 
Nottinghamshire Fire and Resccue Service,104256,Advanced Demand Side Management Limited,Advanced Demand Side Management Limited,Operational Responses,5,202410,01/12/2023,P6,9109754,"-3,605.55 ","3,605.55 ",2104,Sewerage and Environmental,1016,Newark,396.33 
Nottinghamshire Fire and Resccue Service,104256,Advanced Demand Side Management Limited,Advanced Demand Side Management Limited,Operational Responses,5,202410,01/12/2023,P6,9109754,"-3,605.55 ","3,605.55 ",2104,Sewerage and Environmental,1016,Newark,409.28 
Nottinghamshire Fire and Resccue Service,104256,Advanced Demand Side Management Limited,Advanced Demand Side Management Limited,Operational Responses,5,202410,01/12/2023,P6,9109754,"-3,605.55 ","3,605.55 ",2104,Sewerage and Environmental,1016,Newark,409.53 
Nottinghamshire Fire and Resccue Service,104256,Advanced Demand Side Management Limited,Advanced Demand Side Management Limited,Operational Responses,5,202410,01/12/2023,P6,9109754,"-3,605.55 ","3,605.55 ",2104,Sewerage and Environmental,1017,Bingham,-86.30 
Nottinghamshire Fire and Resccue Service,104256,Advanced Demand Side Management Limited,Advanced Demand Side Management Limited,Operational Responses,5,202410,01/12/2023,P6,9109754,"-3,605.55 ","3,605.55 ",2104,Sewerage and Environmental,1017,Bingham,84.97 
Nottinghamshire Fire and Resccue Service,104256,Advanced Demand Side Management Limited,Advanced Demand Side Management Limited,Operational Responses,5,202410,01/12/2023,P6,9109754,"-3,605.55 ","3,605.55 ",2104,Sewerage and Environmental,1017,Bingham,92.02 
Nottinghamshire Fire and Resccue Service,104256,Advanced Demand Side Management Limited,Advanced Demand Side Management Limited,Operational Responses,5,202410,01/12/2023,P6,9109754,"-3,605.55 ","3,605.55 ",2104,Sewerage and Environmental,1019,West Bridgford,-295.77 
Nottinghamshire Fire and Resccue Service,104256,Advanced Demand Side Management Limited,Advanced Demand Side Management Limited,Operational Responses,5,202410,01/12/2023,P6,9109754,"-3,605.55 ","3,605.55 ",2104,Sewerage and Environmental,1019,West Bridgford,264.93 
Nottinghamshire Fire and Resccue Service,104256,Advanced Demand Side Management Limited,Advanced Demand Side Management Limited,Operational Responses,5,202410,01/12/2023,P6,9109754,"-3,605.55 ","3,605.55 ",2104,Sewerage and Environmental,1019,West Bridgford,282.52 
Nottinghamshire Fire and Resccue Service,104256,Advanced Demand Side Management Limited,Advanced Demand Side Management Limited,Operational Responses,5,202410,01/12/2023,P6,9109754,"-3,605.55 ","3,605.55 ",2104,Sewerage and Environmental,1020,Stockhill,180.69 
Nottinghamshire Fire and Resccue Service,104256,Advanced Demand Side Management Limited,Advanced Demand Side Management Limited,Operational Responses,5,202410,01/12/2023,P6,9109754,"-3,605.55 ","3,605.55 ",2104,Sewerage and Environmental,1023,Stapleford,96.91 
Nottinghamshire Fire and Resccue Service,104256,Advanced Demand Side Management Limited,Advanced Demand Side Management Limited,Operational Responses,5,202410,01/12/2023,P6,9109754,"-3,605.55 ","3,605.55 ",2104,Sewerage and Environmental,1024,Eastwood,28.62 
Nottinghamshire Fire and Resccue Service,104256,Advanced Demand Side Management Limited,Advanced Demand Side Management Limited,Operational Responses,5,202410,01/12/2023,P6,9109754,"-3,605.55 ","3,605.55 ",2104,Sewerage and Environmental,1024,Eastwood,44.25 
Nottinghamshire Fire and Resccue Service,104256,Advanced Demand Side Management Limited,Advanced Demand Side Management Limited,Operational Responses,5,202410,01/12/2023,P6,9109754,"-3,605.55 ","3,605.55 ",2104,Sewerage and Environmental,1026,Arnold,162.39 
Nottinghamshire Fire and Resccue Service,104256,Advanced Demand Side Management Limited,Advanced Demand Side Management Limited,Operational Responses,5,202410,01/12/2023,P6,9109754,"-3,605.55 ","3,605.55 ",2104,Sewerage and Environmental,1027,Carlton,-178.83 
Nottinghamshire Fire and Resccue Service,104256,Advanced Demand Side Management Limited,Advanced Demand Side Management Limited,Operational Responses,5,202410,01/12/2023,P6,9109754,"-3,605.55 ","3,605.55 ",2104,Sewerage and Environmental,1027,Carlton,180.33 
Nottinghamshire Fire and Resccue Service,104256,Advanced Demand Side Management Limited,Advanced Demand Side Management Limited,Operational Responses,5,202410,01/12/2023,P6,9109754,"-3,605.55 ","3,605.55 ",2104,Sewerage and Environmental,1027,Carlton,185.84 
Nottinghamshire Fire and Resccue Service,104256,Advanced Demand Side Management Limited,Advanced Demand Side Management Limited,Operational Responses,5,202410,01/12/2023,P6,9109754,"-3,605.55 ","3,605.55 ",2104,Sewerage and Environmental,1028,East Leake,10.01 
Nottinghamshire Fire and Resccue Service,104256,Advanced Demand Side Management Limited,Advanced Demand Side Management Limited,Operational Responses,5,202410,01/12/2023,P6,9109754,"-3,605.55 ","3,605.55 ",2104,Sewerage and Environmental,1029,Highfields Station,184.21 
Nottinghamshire Fire and Resccue Service,104256,Advanced Demand Side Management Limited,Advanced Demand Side Management Limited,Management & Support Services,5,202410,01/12/2023,P6,9109754,"-3,605.55 ","3,605.55 ",2104,Sewerage and Environmental,1030,Service Development Centre,331.15 
Nottinghamshire Fire and Resccue Service,104256,Advanced Demand Side Management Limited,Advanced Demand Side Management Limited,Management & Support Services,5,202410,01/12/2023,P6,9109754,"-3,605.55 ","3,605.55 ",2104,Sewerage and Environmental,1035,Headquarters,168.41 
Nottinghamshire Fire and Resccue Service,104256,Advanced Demand Side Management Limited,Advanced Demand Side Management Limited,Prevention & Education,5,202410,01/12/2023,P6,9109754,"-3,605.55 ","3,605.55 ",2104,Sewerage and Environmental,1036,Clifton Community Safety Centre,61.56 
Nottinghamshire Fire and Resccue Service,104256,Advanced Demand Side Management Limited,Advanced Demand Side Management Limited,Operational Responses,5,202410,02/01/2024,P6,9109914,"-6,370.85 ","6,370.85 ",2104,Sewerage and Environmental,1001,Mansfield,17.99 
Nottinghamshire Fire and Resccue Service,104256,Advanced Demand Side Management Limited,Advanced Demand Side Management Limited,Operational Responses,5,202410,02/01/2024,P6,9109914,"-6,370.85 ","6,370.85 ",2104,Sewerage and Environmental,1001,Mansfield,184.79 
Nottinghamshire Fire and Resccue Service,104256,Advanced Demand Side Management Limited,Advanced Demand Side Management Limited,Operational Responses,5,202410,02/01/2024,P6,9109914,"-6,370.85 ","6,370.85 ",2104,Sewerage and Environmental,1002,Blidworth,12.20 
Nottinghamshire Fire and Resccue Service,104256,Advanced Demand Side Management Limited,Advanced Demand Side Management Limited,Operational Responses,5,202410,02/01/2024,P6,9109914,"-6,370.85 ","6,370.85 ",2104,Sewerage and Environmental,1003,London Road,47.43 
Nottinghamshire Fire and Resccue Service,104256,Advanced Demand Side Management Limited,Advanced Demand Side Management Limited,Operational Responses,5,202410,02/01/2024,P6,9109914,"-6,370.85 ","6,370.85 ",2104,Sewerage and Environmental,1005,Ashfield,94.45 
Nottinghamshire Fire and Resccue Service,104256,Advanced Demand Side Management Limited,Advanced Demand Side Management Limited,Operational Responses,5,202410,02/01/2024,P6,9109914,"-6,370.85 ","6,370.85 ",2104,Sewerage and Environmental,1006,Edwinstowe,144.34 
Nottinghamshire Fire and Resccue Service,104256,Advanced Demand Side Management Limited,Advanced Demand Side Management Limited,Operational Responses,5,202410,02/01/2024,P6,9109914,"-6,370.85 ","6,370.85 ",2104,Sewerage and Environmental,1007,Warsop,13.20 
Nottinghamshire Fire and Resccue Service,104256,Advanced Demand Side Management Limited,Advanced Demand Side Management Limited,Operational Responses,5,202410,02/01/2024,P6,9109914,"-6,370.85 ","6,370.85 ",2104,Sewerage and Environmental,1008,Worksop,559.04 
Nottinghamshire Fire and Resccue Service,104256,Advanced Demand Side Management Limited,Advanced Demand Side Management Limited,Operational Responses,5,202410,02/01/2024,P6,9109914,"-6,370.85 ","6,370.85 ",2104,Sewerage and Environmental,1010,Harworth,11.10 
Nottinghamshire Fire and Resccue Service,104256,Advanced Demand Side Management Limited,Advanced Demand Side Management Limited,Operational Responses,5,202410,02/01/2024,P6,9109914,"-6,370.85 ","6,370.85 ",2104,Sewerage and Environmental,1011,Misterton,41.41 
Nottinghamshire Fire and Resccue Service,104256,Advanced Demand Side Management Limited,Advanced Demand Side Management Limited,Operational Responses,5,202410,02/01/2024,P6,9109914,"-6,370.85 ","6,370.85 ",2104,Sewerage and Environmental,1012,Retford,27.03 
Nottinghamshire Fire and Resccue Service,104256,Advanced Demand Side Management Limited,Advanced Demand Side Management Limited,Operational Responses,5,202410,02/01/2024,P6,9109914,"-6,370.85 ","6,370.85 ",2104,Sewerage and Environmental,1012,Retford,106.44 
Nottinghamshire Fire and Resccue Service,104256,Advanced Demand Side Management Limited,Advanced Demand Side Management Limited,Operational Responses,5,202410,02/01/2024,P6,9109914,"-6,370.85 ","6,370.85 ",2104,Sewerage and Environmental,1013,Tuxford,148.97 
Nottinghamshire Fire and Resccue Service,104256,Advanced Demand Side Management Limited,Advanced Demand Side Management Limited,Operational Responses,5,202410,02/01/2024,P6,9109914,"-6,370.85 ","6,370.85 ",2104,Sewerage and Environmental,1014,Southwell,89.98 
Nottinghamshire Fire and Resccue Service,104256,Advanced Demand Side Management Limited,Advanced Demand Side Management Limited,Operational Responses,5,202410,02/01/2024,P6,9109914,"-6,370.85 ","6,370.85 ",2104,Sewerage and Environmental,1015,Collingham,70.17 
Nottinghamshire Fire and Resccue Service,104256,Advanced Demand Side Management Limited,Advanced Demand Side Management Limited,Operational Responses,5,202410,02/01/2024,P6,9109914,"-6,370.85 ","6,370.85 ",2104,Sewerage and Environmental,1016,Newark,397.49 
Nottinghamshire Fire and Resccue Service,104256,Advanced Demand Side Management Limited,Advanced Demand Side Management Limited,Operational Responses,5,202410,02/01/2024,P6,9109914,"-6,370.85 ","6,370.85 ",2104,Sewerage and Environmental,1017,Bingham,98.08 
Nottinghamshire Fire and Resccue Service,104256,Advanced Demand Side Management Limited,Advanced Demand Side Management Limited,Operational Responses,5,202410,02/01/2024,P6,9109914,"-6,370.85 ","6,370.85 ",2104,Sewerage and Environmental,1019,West Bridgford,292.96 
Nottinghamshire Fire and Resccue Service,104256,Advanced Demand Side Management Limited,Advanced Demand Side Management Limited,Operational Responses,5,202410,02/01/2024,P6,9109914,"-6,370.85 ","6,370.85 ",2104,Sewerage and Environmental,1020,Stockhill,186.71 
Nottinghamshire Fire and Resccue Service,104256,Advanced Demand Side Management Limited,Advanced Demand Side Management Limited,Operational Responses,5,202410,02/01/2024,P6,9109914,"-6,370.85 ","6,370.85 ",2104,Sewerage and Environmental,1023,Stapleford,100.13 
Nottinghamshire Fire and Resccue Service,104256,Advanced Demand Side Management Limited,Advanced Demand Side Management Limited,Operational Responses,5,202410,02/01/2024,P6,9109914,"-6,370.85 ","6,370.85 ",2104,Sewerage and Environmental,1024,Eastwood,90.35 
Nottinghamshire Fire and Resccue Service,104256,Advanced Demand Side Management Limited,Advanced Demand Side Management Limited,Operational Responses,5,202410,02/01/2024,P6,9109914,"-6,370.85 ","6,370.85 ",2104,Sewerage and Environmental,1026,Arnold,167.80 
Nottinghamshire Fire and Resccue Service,104256,Advanced Demand Side Management Limited,Advanced Demand Side Management Limited,Operational Responses,5,202410,02/01/2024,P6,9109914,"-6,370.85 ","6,370.85 ",2104,Sewerage and Environmental,1027,Carlton,191.23 
Nottinghamshire Fire and Resccue Service,104256,Advanced Demand Side Management Limited,Advanced Demand Side Management Limited,Operational Responses,5,202410,02/01/2024,P6,9109914,"-6,370.85 ","6,370.85 ",2104,Sewerage and Environmental,1028,East Leake,10.35 
Nottinghamshire Fire and Resccue Service,104256,Advanced Demand Side Management Limited,Advanced Demand Side Management Limited,Operational Responses,5,202410,02/01/2024,P6,9109914,"-6,370.85 ","6,370.85 ",2104,Sewerage and Environmental,1029,Highfields Station,190.35 
Nottinghamshire Fire and Resccue Service,104256,Advanced Demand Side Management Limited,Advanced Demand Side Management Limited,Management & Support Services,5,202410,02/01/2024,P6,9109914,"-6,370.85 ","6,370.85 ",2104,Sewerage and Environmental,1030,Service Development Centre,342.19 
Nottinghamshire Fire and Resccue Service,104256,Advanced Demand Side Management Limited,Advanced Demand Side Management Limited,Management & Support Services,5,202410,02/01/2024,P6,9109914,"-6,370.85 ","6,370.85 ",2104,Sewerage and Environmental,1035,Headquarters,174.02 
Nottinghamshire Fire and Resccue Service,104256,Advanced Demand Side Management Limited,Advanced Demand Side Management Limited,Prevention & Education,5,202410,02/01/2024,P6,9109914,"-6,370.85 ","6,370.85 ",2104,Sewerage and Environmental,1036,Clifton Community Safety Centre,63.61 
Nottinghamshire Fire and Resccue Service,101791,Bassetlaw District Council (Debt Collection),Bassetlaw District Council (Debt Collection),Operational Responses,4,202410,31/08/2023,P6,9109938,-840.00 ,840.00 ,2105,Business Rates,1013,Tuxford,840.00 
Nottinghamshire Fire and Resccue Service,101791,Bassetlaw District Council (Debt Collection),Bassetlaw District Council (Debt Collection),Operational Responses,4,202410,31/08/2023,P6,9109939,-292.50 ,292.50 ,2105,Business Rates,1011,Misterton,292.50 
Nottinghamshire Fire and Resccue Service,101791,Bassetlaw District Council (Debt Collection),Bassetlaw District Council (Debt Collection),Operational Responses,4,202410,31/08/2023,P6,9109940,-570.00 ,570.00 ,2105,Business Rates,1010,Harworth,570.00 
Nottinghamshire Fire and Resccue Service,101791,Bassetlaw District Council (Debt Collection),Bassetlaw District Council (Debt Collection),Operational Responses,4,202410,31/08/2023,P6,9109941,"-1,250.00 ","1,250.00 ",2105,Business Rates,1008,Worksop,"1,250.00 "
Nottinghamshire Fire and Resccue Service,101791,Bassetlaw District Council (Debt Collection),Bassetlaw District Council (Debt Collection),Operational Responses,4,202410,31/08/2023,P6,9109942,"-1,300.00 ","1,300.00 ",2105,Business Rates,1012,Retford,"1,300.00 "
Nottinghamshire Fire and Resccue Service,103280,Shred IT Limited,Shred IT Limited,Management & Support Services,5,202410,30/06/2023,P6,9109704,-976.92 ,976.92 ,2106,Refuse / Trade Waste Collection,1035,Headquarters,814.10 
Nottinghamshire Fire and Resccue Service,103847,Veolia ES UK Limited,Veolia ES UK Limited,Management & Support Services,5,202410,31/12/2023,P6,9109852,"-1,090.63 ","1,090.63 ",2106,Refuse / Trade Waste Collection,2086,Procurement,908.86 
Nottinghamshire Fire and Resccue Service,100557,NCC Sundry Debtors,NCC Sundry Debtors,Operational Responses,4,202410,01/01/2024,P6,9109723,"-1,980.19 ","1,980.19 ",2201,Grounds Maintenance,1001,Mansfield,38.10 
Nottinghamshire Fire and Resccue Service,100557,NCC Sundry Debtors,NCC Sundry Debtors,Operational Responses,4,202410,01/01/2024,P6,9109723,"-1,980.19 ","1,980.19 ",2201,Grounds Maintenance,1002,Blidworth,67.84 
Nottinghamshire Fire and Resccue Service,100557,NCC Sundry Debtors,NCC Sundry Debtors,Operational Responses,4,202410,01/01/2024,P6,9109723,"-1,980.19 ","1,980.19 ",2201,Grounds Maintenance,1003,London Road,46.25 
Nottinghamshire Fire and Resccue Service,100557,NCC Sundry Debtors,NCC Sundry Debtors,Operational Responses,4,202410,01/01/2024,P6,9109723,"-1,980.19 ","1,980.19 ",2201,Grounds Maintenance,1005,Ashfield,218.75 
Nottinghamshire Fire and Resccue Service,100557,NCC Sundry Debtors,NCC Sundry Debtors,Operational Responses,4,202410,01/01/2024,P6,9109723,"-1,980.19 ","1,980.19 ",2201,Grounds Maintenance,1006,Edwinstowe,45.28 
Nottinghamshire Fire and Resccue Service,100557,NCC Sundry Debtors,NCC Sundry Debtors,Operational Responses,4,202410,01/01/2024,P6,9109723,"-1,980.19 ","1,980.19 ",2201,Grounds Maintenance,1007,Warsop,7.50 
Nottinghamshire Fire and Resccue Service,100557,NCC Sundry Debtors,NCC Sundry Debtors,Operational Responses,4,202410,01/01/2024,P6,9109723,"-1,980.19 ","1,980.19 ",2201,Grounds Maintenance,1008,Worksop,45.85 
Nottinghamshire Fire and Resccue Service,100557,NCC Sundry Debtors,NCC Sundry Debtors,Operational Responses,4,202410,01/01/2024,P6,9109723,"-1,980.19 ","1,980.19 ",2201,Grounds Maintenance,1010,Harworth,44.25 
Nottinghamshire Fire and Resccue Service,100557,NCC Sundry Debtors,NCC Sundry Debtors,Operational Responses,4,202410,01/01/2024,P6,9109723,"-1,980.19 ","1,980.19 ",2201,Grounds Maintenance,1011,Misterton,39.50 
Nottinghamshire Fire and Resccue Service,100557,NCC Sundry Debtors,NCC Sundry Debtors,Operational Responses,4,202410,01/01/2024,P6,9109723,"-1,980.19 ","1,980.19 ",2201,Grounds Maintenance,1012,Retford,26.76 
Nottinghamshire Fire and Resccue Service,100557,NCC Sundry Debtors,NCC Sundry Debtors,Operational Responses,4,202410,01/01/2024,P6,9109723,"-1,980.19 ","1,980.19 ",2201,Grounds Maintenance,1013,Tuxford,30.00 
Nottinghamshire Fire and Resccue Service,100557,NCC Sundry Debtors,NCC Sundry Debtors,Operational Responses,4,202410,01/01/2024,P6,9109723,"-1,980.19 ","1,980.19 ",2201,Grounds Maintenance,1014,Southwell,36.13 
Nottinghamshire Fire and Resccue Service,100557,NCC Sundry Debtors,NCC Sundry Debtors,Operational Responses,4,202410,01/01/2024,P6,9109723,"-1,980.19 ","1,980.19 ",2201,Grounds Maintenance,1015,Collingham,40.80 
Nottinghamshire Fire and Resccue Service,100557,NCC Sundry Debtors,NCC Sundry Debtors,Operational Responses,4,202410,01/01/2024,P6,9109723,"-1,980.19 ","1,980.19 ",2201,Grounds Maintenance,1016,Newark,40.00 
Nottinghamshire Fire and Resccue Service,100557,NCC Sundry Debtors,NCC Sundry Debtors,Operational Responses,4,202410,01/01/2024,P6,9109723,"-1,980.19 ","1,980.19 ",2201,Grounds Maintenance,1017,Bingham,64.08 
Nottinghamshire Fire and Resccue Service,100557,NCC Sundry Debtors,NCC Sundry Debtors,Operational Responses,4,202410,01/01/2024,P6,9109723,"-1,980.19 ","1,980.19 ",2201,Grounds Maintenance,1019,West Bridgford,84.48 
Nottinghamshire Fire and Resccue Service,100557,NCC Sundry Debtors,NCC Sundry Debtors,Operational Responses,4,202410,01/01/2024,P6,9109723,"-1,980.19 ","1,980.19 ",2201,Grounds Maintenance,1020,Stockhill,216.10 
Nottinghamshire Fire and Resccue Service,100557,NCC Sundry Debtors,NCC Sundry Debtors,Operational Responses,4,202410,01/01/2024,P6,9109723,"-1,980.19 ","1,980.19 ",2201,Grounds Maintenance,1023,Stapleford,80.50 
Nottinghamshire Fire and Resccue Service,100557,NCC Sundry Debtors,NCC Sundry Debtors,Operational Responses,4,202410,01/01/2024,P6,9109723,"-1,980.19 ","1,980.19 ",2201,Grounds Maintenance,1024,Eastwood,28.75 
Nottinghamshire Fire and Resccue Service,100557,NCC Sundry Debtors,NCC Sundry Debtors,Operational Responses,4,202410,01/01/2024,P6,9109723,"-1,980.19 ","1,980.19 ",2201,Grounds Maintenance,1026,Arnold,22.08 
Nottinghamshire Fire and Resccue Service,100557,NCC Sundry Debtors,NCC Sundry Debtors,Operational Responses,4,202410,01/01/2024,P6,9109723,"-1,980.19 ","1,980.19 ",2201,Grounds Maintenance,1027,Carlton,39.58 
Nottinghamshire Fire and Resccue Service,100557,NCC Sundry Debtors,NCC Sundry Debtors,Operational Responses,4,202410,01/01/2024,P6,9109723,"-1,980.19 ","1,980.19 ",2201,Grounds Maintenance,1028,East Leake,133.75 
Nottinghamshire Fire and Resccue Service,100557,NCC Sundry Debtors,NCC Sundry Debtors,Operational Responses,4,202410,01/01/2024,P6,9109723,"-1,980.19 ","1,980.19 ",2201,Grounds Maintenance,1029,Highfields Station,97.08 
Nottinghamshire Fire and Resccue Service,100557,NCC Sundry Debtors,NCC Sundry Debtors,Management & Support Services,4,202410,01/01/2024,P6,9109723,"-1,980.19 ","1,980.19 ",2201,Grounds Maintenance,1030,Service Development Centre,156.75 
Nottinghamshire Fire and Resccue Service,100557,NCC Sundry Debtors,NCC Sundry Debtors,Operational Responses,4,202410,01/01/2024,P6,9109714,-864.00 ,864.00 ,2204,Contract Cleaning,1001,Mansfield,30.00 
Nottinghamshire Fire and Resccue Service,100557,NCC Sundry Debtors,NCC Sundry Debtors,Operational Responses,4,202410,01/01/2024,P6,9109714,-864.00 ,864.00 ,2204,Contract Cleaning,1002,Blidworth,30.00 
Nottinghamshire Fire and Resccue Service,100557,NCC Sundry Debtors,NCC Sundry Debtors,Operational Responses,4,202410,01/01/2024,P6,9109714,-864.00 ,864.00 ,2204,Contract Cleaning,1003,London Road,30.00 
Nottinghamshire Fire and Resccue Service,100557,NCC Sundry Debtors,NCC Sundry Debtors,Operational Responses,4,202410,01/01/2024,P6,9109714,-864.00 ,864.00 ,2204,Contract Cleaning,1005,Ashfield,30.00 
Nottinghamshire Fire and Resccue Service,100557,NCC Sundry Debtors,NCC Sundry Debtors,Operational Responses,4,202410,01/01/2024,P6,9109714,-864.00 ,864.00 ,2204,Contract Cleaning,1006,Edwinstowe,30.00 
Nottinghamshire Fire and Resccue Service,100557,NCC Sundry Debtors,NCC Sundry Debtors,Operational Responses,4,202410,01/01/2024,P6,9109714,-864.00 ,864.00 ,2204,Contract Cleaning,1007,Warsop,30.00 
Nottinghamshire Fire and Resccue Service,100557,NCC Sundry Debtors,NCC Sundry Debtors,Operational Responses,4,202410,01/01/2024,P6,9109714,-864.00 ,864.00 ,2204,Contract Cleaning,1008,Worksop,30.00 
Nottinghamshire Fire and Resccue Service,100557,NCC Sundry Debtors,NCC Sundry Debtors,Operational Responses,4,202410,01/01/2024,P6,9109714,-864.00 ,864.00 ,2204,Contract Cleaning,1010,Harworth,30.00 
Nottinghamshire Fire and Resccue Service,100557,NCC Sundry Debtors,NCC Sundry Debtors,Operational Responses,4,202410,01/01/2024,P6,9109714,-864.00 ,864.00 ,2204,Contract Cleaning,1011,Misterton,30.00 
Nottinghamshire Fire and Resccue Service,100557,NCC Sundry Debtors,NCC Sundry Debtors,Operational Responses,4,202410,01/01/2024,P6,9109714,-864.00 ,864.00 ,2204,Contract Cleaning,1012,Retford,30.00 
Nottinghamshire Fire and Resccue Service,100557,NCC Sundry Debtors,NCC Sundry Debtors,Operational Responses,4,202410,01/01/2024,P6,9109714,-864.00 ,864.00 ,2204,Contract Cleaning,1013,Tuxford,30.00 
Nottinghamshire Fire and Resccue Service,100557,NCC Sundry Debtors,NCC Sundry Debtors,Operational Responses,4,202410,01/01/2024,P6,9109714,-864.00 ,864.00 ,2204,Contract Cleaning,1014,Southwell,30.00 
Nottinghamshire Fire and Resccue Service,100557,NCC Sundry Debtors,NCC Sundry Debtors,Operational Responses,4,202410,01/01/2024,P6,9109714,-864.00 ,864.00 ,2204,Contract Cleaning,1015,Collingham,30.00 
Nottinghamshire Fire and Resccue Service,100557,NCC Sundry Debtors,NCC Sundry Debtors,Operational Responses,4,202410,01/01/2024,P6,9109714,-864.00 ,864.00 ,2204,Contract Cleaning,1016,Newark,30.00 
Nottinghamshire Fire and Resccue Service,100557,NCC Sundry Debtors,NCC Sundry Debtors,Operational Responses,4,202410,01/01/2024,P6,9109714,-864.00 ,864.00 ,2204,Contract Cleaning,1017,Bingham,30.00 
Nottinghamshire Fire and Resccue Service,100557,NCC Sundry Debtors,NCC Sundry Debtors,Operational Responses,4,202410,01/01/2024,P6,9109714,-864.00 ,864.00 ,2204,Contract Cleaning,1019,West Bridgford,30.00 
Nottinghamshire Fire and Resccue Service,100557,NCC Sundry Debtors,NCC Sundry Debtors,Operational Responses,4,202410,01/01/2024,P6,9109714,-864.00 ,864.00 ,2204,Contract Cleaning,1020,Stockhill,30.00 
Nottinghamshire Fire and Resccue Service,100557,NCC Sundry Debtors,NCC Sundry Debtors,Operational Responses,4,202410,01/01/2024,P6,9109714,-864.00 ,864.00 ,2204,Contract Cleaning,1023,Stapleford,30.00 
Nottinghamshire Fire and Resccue Service,100557,NCC Sundry Debtors,NCC Sundry Debtors,Operational Responses,4,202410,01/01/2024,P6,9109714,-864.00 ,864.00 ,2204,Contract Cleaning,1024,Eastwood,30.00 
Nottinghamshire Fire and Resccue Service,100557,NCC Sundry Debtors,NCC Sundry Debtors,Operational Responses,4,202410,01/01/2024,P6,9109714,-864.00 ,864.00 ,2204,Contract Cleaning,1026,Arnold,30.00 
Nottinghamshire Fire and Resccue Service,100557,NCC Sundry Debtors,NCC Sundry Debtors,Operational Responses,4,202410,01/01/2024,P6,9109714,-864.00 ,864.00 ,2204,Contract Cleaning,1027,Carlton,30.00 
Nottinghamshire Fire and Resccue Service,100557,NCC Sundry Debtors,NCC Sundry Debtors,Operational Responses,4,202410,01/01/2024,P6,9109714,-864.00 ,864.00 ,2204,Contract Cleaning,1028,East Leake,30.00 
Nottinghamshire Fire and Resccue Service,100557,NCC Sundry Debtors,NCC Sundry Debtors,Operational Responses,4,202410,01/01/2024,P6,9109714,-864.00 ,864.00 ,2204,Contract Cleaning,1029,Highfields Station,30.00 
Nottinghamshire Fire and Resccue Service,100557,NCC Sundry Debtors,NCC Sundry Debtors,Management & Support Services,4,202410,01/01/2024,P6,9109714,-864.00 ,864.00 ,2204,Contract Cleaning,1030,Service Development Centre,30.00 
Nottinghamshire Fire and Resccue Service,100557,NCC Sundry Debtors,NCC Sundry Debtors,Operational Responses,4,202410,01/01/2024,P6,9109721,"-39,783.70 ","39,783.70 ",2204,Contract Cleaning,1001,Mansfield,"2,845.17 "
Nottinghamshire Fire and Resccue Service,100557,NCC Sundry Debtors,NCC Sundry Debtors,Operational Responses,4,202410,01/01/2024,P6,9109721,"-39,783.70 ","39,783.70 ",2204,Contract Cleaning,1002,Blidworth,268.77 
Nottinghamshire Fire and Resccue Service,100557,NCC Sundry Debtors,NCC Sundry Debtors,Operational Responses,4,202410,01/01/2024,P6,9109721,"-39,783.70 ","39,783.70 ",2204,Contract Cleaning,1003,London Road,"3,037.54 "
Nottinghamshire Fire and Resccue Service,100557,NCC Sundry Debtors,NCC Sundry Debtors,Operational Responses,4,202410,01/01/2024,P6,9109721,"-39,783.70 ","39,783.70 ",2204,Contract Cleaning,1005,Ashfield,"1,498.54 "
Nottinghamshire Fire and Resccue Service,100557,NCC Sundry Debtors,NCC Sundry Debtors,Operational Responses,4,202410,01/01/2024,P6,9109721,"-39,783.70 ","39,783.70 ",2204,Contract Cleaning,1006,Edwinstowe,"1,152.27 "
Nottinghamshire Fire and Resccue Service,100557,NCC Sundry Debtors,NCC Sundry Debtors,Operational Responses,4,202410,01/01/2024,P6,9109721,"-39,783.70 ","39,783.70 ",2204,Contract Cleaning,1007,Warsop,230.29 
Nottinghamshire Fire and Resccue Service,100557,NCC Sundry Debtors,NCC Sundry Debtors,Operational Responses,4,202410,01/01/2024,P6,9109721,"-39,783.70 ","39,783.70 ",2204,Contract Cleaning,1008,Worksop,"1,883.29 "
Nottinghamshire Fire and Resccue Service,100557,NCC Sundry Debtors,NCC Sundry Debtors,Operational Responses,4,202410,01/01/2024,P6,9109721,"-39,783.70 ","39,783.70 ",2204,Contract Cleaning,1010,Harworth,422.67 
Nottinghamshire Fire and Resccue Service,100557,NCC Sundry Debtors,NCC Sundry Debtors,Operational Responses,4,202410,01/01/2024,P6,9109721,"-39,783.70 ","39,783.70 ",2204,Contract Cleaning,1011,Misterton,345.72 
Nottinghamshire Fire and Resccue Service,100557,NCC Sundry Debtors,NCC Sundry Debtors,Operational Responses,4,202410,01/01/2024,P6,9109721,"-39,783.70 ","39,783.70 ",2204,Contract Cleaning,1012,Retford,"1,921.77 "
Nottinghamshire Fire and Resccue Service,100557,NCC Sundry Debtors,NCC Sundry Debtors,Operational Responses,4,202410,01/01/2024,P6,9109721,"-39,783.70 ","39,783.70 ",2204,Contract Cleaning,1013,Tuxford,268.77 
Nottinghamshire Fire and Resccue Service,100557,NCC Sundry Debtors,NCC Sundry Debtors,Operational Responses,4,202410,01/01/2024,P6,9109721,"-39,783.70 ","39,783.70 ",2204,Contract Cleaning,1014,Southwell,384.19 
Nottinghamshire Fire and Resccue Service,100557,NCC Sundry Debtors,NCC Sundry Debtors,Operational Responses,4,202410,01/01/2024,P6,9109721,"-39,783.70 ","39,783.70 ",2204,Contract Cleaning,1015,Collingham,384.19 
Nottinghamshire Fire and Resccue Service,100557,NCC Sundry Debtors,NCC Sundry Debtors,Operational Responses,4,202410,01/01/2024,P6,9109721,"-39,783.70 ","39,783.70 ",2204,Contract Cleaning,1016,Newark,"1,498.54 "
Nottinghamshire Fire and Resccue Service,100557,NCC Sundry Debtors,NCC Sundry Debtors,Operational Responses,4,202410,01/01/2024,P6,9109721,"-39,783.70 ","39,783.70 ",2204,Contract Cleaning,1017,Bingham,268.77 
Nottinghamshire Fire and Resccue Service,100557,NCC Sundry Debtors,NCC Sundry Debtors,Operational Responses,4,202410,01/01/2024,P6,9109721,"-39,783.70 ","39,783.70 ",2204,Contract Cleaning,1019,West Bridgford,"2,306.52 "
Nottinghamshire Fire and Resccue Service,100557,NCC Sundry Debtors,NCC Sundry Debtors,Operational Responses,4,202410,01/01/2024,P6,9109721,"-39,783.70 ","39,783.70 ",2204,Contract Cleaning,1020,Stockhill,"1,883.29 "
Nottinghamshire Fire and Resccue Service,100557,NCC Sundry Debtors,NCC Sundry Debtors,Operational Responses,4,202410,01/01/2024,P6,9109721,"-39,783.70 ","39,783.70 ",2204,Contract Cleaning,1023,Stapleford,615.04 
Nottinghamshire Fire and Resccue Service,100557,NCC Sundry Debtors,NCC Sundry Debtors,Operational Responses,4,202410,01/01/2024,P6,9109721,"-39,783.70 ","39,783.70 ",2204,Contract Cleaning,1024,Eastwood,422.67 
Nottinghamshire Fire and Resccue Service,100557,NCC Sundry Debtors,NCC Sundry Debtors,Operational Responses,4,202410,01/01/2024,P6,9109721,"-39,783.70 ","39,783.70 ",2204,Contract Cleaning,1026,Arnold,"1,402.35 "
Nottinghamshire Fire and Resccue Service,100557,NCC Sundry Debtors,NCC Sundry Debtors,Operational Responses,4,202410,01/01/2024,P6,9109721,"-39,783.70 ","39,783.70 ",2204,Contract Cleaning,1027,Carlton,"2,652.79 "
Nottinghamshire Fire and Resccue Service,100557,NCC Sundry Debtors,NCC Sundry Debtors,Operational Responses,4,202410,01/01/2024,P6,9109721,"-39,783.70 ","39,783.70 ",2204,Contract Cleaning,1028,East Leake,268.77 
Nottinghamshire Fire and Resccue Service,100557,NCC Sundry Debtors,NCC Sundry Debtors,Operational Responses,4,202410,01/01/2024,P6,9109721,"-39,783.70 ","39,783.70 ",2204,Contract Cleaning,1029,Highfields Station,"5,075.59 "
Nottinghamshire Fire and Resccue Service,100557,NCC Sundry Debtors,NCC Sundry Debtors,Management & Support Services,4,202410,01/01/2024,P6,9109721,"-39,783.70 ","39,783.70 ",2204,Contract Cleaning,1030,Service Development Centre,"2,115.57 "
Nottinghamshire Fire and Resccue Service,100557,NCC Sundry Debtors,NCC Sundry Debtors,Operational Responses,4,202410,01/01/2024,P6,9109713,-848.00 ,848.00 ,2205,Window Cleaning,1001,Mansfield,50.00 
Nottinghamshire Fire and Resccue Service,100557,NCC Sundry Debtors,NCC Sundry Debtors,Operational Responses,4,202410,01/01/2024,P6,9109713,-848.00 ,848.00 ,2205,Window Cleaning,1002,Blidworth,20.00 
Nottinghamshire Fire and Resccue Service,100557,NCC Sundry Debtors,NCC Sundry Debtors,Operational Responses,4,202410,01/01/2024,P6,9109713,-848.00 ,848.00 ,2205,Window Cleaning,1003,London Road,41.67 
Nottinghamshire Fire and Resccue Service,100557,NCC Sundry Debtors,NCC Sundry Debtors,Operational Responses,4,202410,01/01/2024,P6,9109713,-848.00 ,848.00 ,2205,Window Cleaning,1005,Ashfield,33.33 
Nottinghamshire Fire and Resccue Service,100557,NCC Sundry Debtors,NCC Sundry Debtors,Operational Responses,4,202410,01/01/2024,P6,9109713,-848.00 ,848.00 ,2205,Window Cleaning,1006,Edwinstowe,33.33 
Nottinghamshire Fire and Resccue Service,100557,NCC Sundry Debtors,NCC Sundry Debtors,Operational Responses,4,202410,01/01/2024,P6,9109713,-848.00 ,848.00 ,2205,Window Cleaning,1007,Warsop,21.67 
Nottinghamshire Fire and Resccue Service,100557,NCC Sundry Debtors,NCC Sundry Debtors,Operational Responses,4,202410,01/01/2024,P6,9109713,-848.00 ,848.00 ,2205,Window Cleaning,1008,Worksop,20.00 
Nottinghamshire Fire and Resccue Service,100557,NCC Sundry Debtors,NCC Sundry Debtors,Operational Responses,4,202410,01/01/2024,P6,9109713,-848.00 ,848.00 ,2205,Window Cleaning,1010,Harworth,21.67 
Nottinghamshire Fire and Resccue Service,100557,NCC Sundry Debtors,NCC Sundry Debtors,Operational Responses,4,202410,01/01/2024,P6,9109713,-848.00 ,848.00 ,2205,Window Cleaning,1011,Misterton,20.00 
Nottinghamshire Fire and Resccue Service,100557,NCC Sundry Debtors,NCC Sundry Debtors,Operational Responses,4,202410,01/01/2024,P6,9109713,-848.00 ,848.00 ,2205,Window Cleaning,1012,Retford,50.00 
Nottinghamshire Fire and Resccue Service,100557,NCC Sundry Debtors,NCC Sundry Debtors,Operational Responses,4,202410,01/01/2024,P6,9109713,-848.00 ,848.00 ,2205,Window Cleaning,1013,Tuxford,18.33 
Nottinghamshire Fire and Resccue Service,100557,NCC Sundry Debtors,NCC Sundry Debtors,Operational Responses,4,202410,01/01/2024,P6,9109713,-848.00 ,848.00 ,2205,Window Cleaning,1014,Southwell,16.67 
Nottinghamshire Fire and Resccue Service,100557,NCC Sundry Debtors,NCC Sundry Debtors,Operational Responses,4,202410,01/01/2024,P6,9109713,-848.00 ,848.00 ,2205,Window Cleaning,1015,Collingham,18.33 
Nottinghamshire Fire and Resccue Service,100557,NCC Sundry Debtors,NCC Sundry Debtors,Operational Responses,4,202410,01/01/2024,P6,9109713,-848.00 ,848.00 ,2205,Window Cleaning,1016,Newark,25.00 
Nottinghamshire Fire and Resccue Service,100557,NCC Sundry Debtors,NCC Sundry Debtors,Operational Responses,4,202410,01/01/2024,P6,9109713,-848.00 ,848.00 ,2205,Window Cleaning,1017,Bingham,16.67 
Nottinghamshire Fire and Resccue Service,100557,NCC Sundry Debtors,NCC Sundry Debtors,Operational Responses,4,202410,01/01/2024,P6,9109713,-848.00 ,848.00 ,2205,Window Cleaning,1019,West Bridgford,50.00 
Nottinghamshire Fire and Resccue Service,100557,NCC Sundry Debtors,NCC Sundry Debtors,Operational Responses,4,202410,01/01/2024,P6,9109713,-848.00 ,848.00 ,2205,Window Cleaning,1020,Stockhill,50.00 
Nottinghamshire Fire and Resccue Service,100557,NCC Sundry Debtors,NCC Sundry Debtors,Operational Responses,4,202410,01/01/2024,P6,9109713,-848.00 ,848.00 ,2205,Window Cleaning,1023,Stapleford,18.33 
Nottinghamshire Fire and Resccue Service,100557,NCC Sundry Debtors,NCC Sundry Debtors,Operational Responses,4,202410,01/01/2024,P6,9109713,-848.00 ,848.00 ,2205,Window Cleaning,1024,Eastwood,20.00 
Nottinghamshire Fire and Resccue Service,100557,NCC Sundry Debtors,NCC Sundry Debtors,Operational Responses,4,202410,01/01/2024,P6,9109713,-848.00 ,848.00 ,2205,Window Cleaning,1026,Arnold,25.00 
Nottinghamshire Fire and Resccue Service,100557,NCC Sundry Debtors,NCC Sundry Debtors,Operational Responses,4,202410,01/01/2024,P6,9109713,-848.00 ,848.00 ,2205,Window Cleaning,1027,Carlton,33.33 
Nottinghamshire Fire and Resccue Service,100557,NCC Sundry Debtors,NCC Sundry Debtors,Operational Responses,4,202410,01/01/2024,P6,9109713,-848.00 ,848.00 ,2205,Window Cleaning,1028,East Leake,16.67 
Nottinghamshire Fire and Resccue Service,100557,NCC Sundry Debtors,NCC Sundry Debtors,Operational Responses,4,202410,01/01/2024,P6,9109713,-848.00 ,848.00 ,2205,Window Cleaning,1029,Highfields Station,66.67 
Nottinghamshire Fire and Resccue Service,100557,NCC Sundry Debtors,NCC Sundry Debtors,Management & Support Services,4,202410,01/01/2024,P6,9109713,-848.00 ,848.00 ,2205,Window Cleaning,1030,Service Development Centre,20.00 
Nottinghamshire Fire and Resccue Service,104280,Fischer Panda Uk Ltd,Fischer Panda Uk Ltd,Management & Support Services,5,202410,31/01/2024,P6,9110012,"-2,396.60 ","2,396.60 ",3002,Purchase of Vehicle Equipment,2084,Engineering,"1,997.17 "
Nottinghamshire Fire and Resccue Service,103820,VIA East Midlands Ltd,VIA East Midlands Ltd,Management & Support Services,5,202410,11/12/2023,P6,9109656,"-22,924.32 ","22,924.32 ",3100,Fleet Maintenance - Planned,2084,Engineering,"19,131.26 "
Nottinghamshire Fire and Resccue Service,103820,VIA East Midlands Ltd,VIA East Midlands Ltd,Management & Support Services,5,202410,20/12/2023,P6,9109676,"-11,589.16 ","11,589.16 ",3100,Fleet Maintenance - Planned,2084,Engineering,"9,667.40 "
Nottinghamshire Fire and Resccue Service,102364,Woodway Engineering Limited,Woodway Engineering Limited,Management & Support Services,1,202410,30/11/2023,P6,9109734,-720.00 ,720.00 ,3101,Fleet Modification,2084,Engineering,600.00 
Nottinghamshire Fire and Resccue Service,102228,Keltruck Limited,Keltruck Limited,Management & Support Services,1,202410,03/01/2024,P6,9109733,"-2,891.54 ","2,891.54 ",3102,Vehicle Maintenance Outsourced,2084,Engineering,"2,409.62 "
Nottinghamshire Fire and Resccue Service,102951,Logistics UK,Logistics UK,Management & Support Services,5,202410,21/12/2023,P6,9109779,"-5,364.55 ","5,364.55 ",3102,Vehicle Maintenance Outsourced,2084,Engineering,"4,470.46 "
Nottinghamshire Fire and Resccue Service,101100,Angloco Limited,Angloco Limited,Management & Support Services,1,202410,30/12/2023,P6,9109875,"-1,755.46 ","1,755.46 ",3102,Vehicle Maintenance Outsourced,2084,Engineering,"1,462.88 "
Nottinghamshire Fire and Resccue Service,101100,Angloco Limited,Angloco Limited,Management & Support Services,1,202410,30/12/2023,P6,9109876,-855.60 ,855.60 ,3102,Vehicle Maintenance Outsourced,2084,Engineering,713.00 
Nottinghamshire Fire and Resccue Service,102228,Keltruck Limited,Keltruck Limited,Management & Support Services,1,202410,17/01/2024,P6,9109884,"-2,041.76 ","2,041.76 ",3102,Vehicle Maintenance Outsourced,2084,Engineering,"1,701.47 "
Nottinghamshire Fire and Resccue Service,101100,Angloco Limited,Angloco Limited,Management & Support Services,1,202410,30/12/2023,P6,9109885,"-8,027.26 ","8,027.26 ",3102,Vehicle Maintenance Outsourced,2084,Engineering,"6,689.38 "
Nottinghamshire Fire and Resccue Service,103820,VIA East Midlands Ltd,VIA East Midlands Ltd,Management & Support Services,5,202410,11/12/2023,P6,9109675,"-68,297.45 ","68,297.45 ",3103,Fleet Maintenance - Unplanned,2084,Engineering,"56,914.54 "
Nottinghamshire Fire and Resccue Service,103820,VIA East Midlands Ltd,VIA East Midlands Ltd,Management & Support Services,5,202410,20/12/2023,P6,9109677,"-48,733.74 ","48,733.74 ",3103,Fleet Maintenance - Unplanned,2084,Engineering,"40,611.45 "
Nottinghamshire Fire and Resccue Service,103820,VIA East Midlands Ltd,VIA East Midlands Ltd,Management & Support Services,5,202410,11/12/2023,P6,9109674,-310.84 ,310.84 ,3104,Fleet - Accident Repairs,2084,Engineering,259.03 
Nottinghamshire Fire and Resccue Service,103820,VIA East Midlands Ltd,VIA East Midlands Ltd,Management & Support Services,5,202410,20/12/2023,P6,9109678,-285.58 ,285.58 ,3104,Fleet - Accident Repairs,2084,Engineering,237.98 
Nottinghamshire Fire and Resccue Service,103766,CERTAS,CERTAS,Operational Responses,5,202410,20/12/2023,P6,9109692,"-6,768.46 ","6,768.46 ",3200,Fuel - Vehicle,1001,Mansfield,"5,640.38 "
Nottinghamshire Fire and Resccue Service,103045,Mitchell Diesel Limited,Mitchell Diesel Limited,Management & Support Services,5,202410,22/12/2023,P6,9109693,"-1,919.88 ","1,919.88 ",3200,Fuel - Vehicle,2084,Engineering,"1,599.90 "
Nottinghamshire Fire and Resccue Service,103766,CERTAS,CERTAS,Operational Responses,5,202410,20/12/2023,P6,9109694,"-9,537.36 ","9,537.36 ",3200,Fuel - Vehicle,1020,Stockhill,"7,947.80 "
Nottinghamshire Fire and Resccue Service,103766,CERTAS,CERTAS,Operational Responses,5,202410,14/12/2023,P6,9109695,"-9,354.92 ","9,354.92 ",3200,Fuel - Vehicle,1016,Newark,"7,795.77 "
Nottinghamshire Fire and Resccue Service,103766,CERTAS,CERTAS,Operational Responses,5,202410,27/12/2023,P6,9109719,"-5,592.96 ","5,592.96 ",3200,Fuel - Vehicle,1029,Highfields Station,"4,660.80 "
Nottinghamshire Fire and Resccue Service,104280,Fischer Panda Uk Ltd,Fischer Panda Uk Ltd,Management & Support Services,5,202410,31/01/2024,P6,9110010,"-11,976.00 ","11,976.00 ",3200,Fuel - Vehicle,2084,Engineering,"9,980.00 "
Nottinghamshire Fire and Resccue Service,104280,Fischer Panda Uk Ltd,Fischer Panda Uk Ltd,Management & Support Services,5,202410,31/01/2024,P6,9110011,"-9,624.00 ","9,624.00 ",3200,Fuel - Vehicle,2084,Engineering,"8,020.00 "
Nottinghamshire Fire and Resccue Service,103942,The Lodge Tyre Co. Limited,The Lodge Tyre Co. Limited,Management & Support Services,5,202410,30/12/2023,P6,9109732,"-10,500.88 ","10,500.88 ",3202,Tyres,2084,Engineering,"8,750.76 "
Nottinghamshire Fire and Resccue Service,103943,Teletrac Navman (UK) Limited,Teletrac Navman (UK) Limited,Management & Support Services,5,202410,01/01/2024,P6,9109666,-999.94 ,999.94 ,3203,Motor Tax / Licenses,2084,Engineering,833.28 
Nottinghamshire Fire and Resccue Service,100321,Drivercheck Ltd,Drivercheck Ltd,Management & Support Services,1,202410,31/12/2023,P6,9109735,-434.10 ,434.10 ,3203,Motor Tax / Licenses,2084,Engineering,361.75 
Nottinghamshire Fire and Resccue Service,103943,Teletrac Navman (UK) Limited,Teletrac Navman (UK) Limited,Management & Support Services,5,202410,01/12/2023,P6,9109785,-999.94 ,999.94 ,3203,Motor Tax / Licenses,2084,Engineering,833.28 
Nottinghamshire Fire and Resccue Service,102070,Life Safety Distribution AG,Life Safety Distribution AG,Management & Support Services,1,202410,08/01/2024,P6,9109786,"-1,793.00 ","1,793.00 ",4000,Operational Equipment Purchase,2084,Engineering,"1,793.00 "
Nottinghamshire Fire and Resccue Service,102307,Weber Rescue Uk Ltd,Weber Rescue Uk Ltd,Management & Support Services,1,202410,15/01/2024,P6,9109878,"-3,453.60 ","3,453.60 ",4000,Operational Equipment Purchase,2084,Engineering,42.00 
Nottinghamshire Fire and Resccue Service,102307,Weber Rescue Uk Ltd,Weber Rescue Uk Ltd,Management & Support Services,1,202410,15/01/2024,P6,9109878,"-3,453.60 ","3,453.60 ",4000,Operational Equipment Purchase,2084,Engineering,"2,836.00 "
Nottinghamshire Fire and Resccue Service,102119,Radiocoms Systems Ltd,Radiocoms Systems Ltd,Management & Support Services,1,202410,15/01/2024,P6,9109879,-393.43 ,393.43 ,4000,Operational Equipment Purchase,2084,Engineering,327.86 
Nottinghamshire Fire and Resccue Service,101919,The Heightec Group Ltd,The Heightec Group Ltd,Management & Support Services,1,202410,17/01/2024,P6,9109926,-289.88 ,289.88 ,4000,Operational Equipment Purchase,2084,Engineering,6.48 
Nottinghamshire Fire and Resccue Service,101919,The Heightec Group Ltd,The Heightec Group Ltd,Management & Support Services,1,202410,17/01/2024,P6,9109926,-289.88 ,289.88 ,4000,Operational Equipment Purchase,2084,Engineering,235.08 
Nottinghamshire Fire and Resccue Service,103443,Terberg DTS UK Limited,Terberg DTS UK Limited,Management & Support Services,5,202410,24/01/2024,P6,9110000,-360.00 ,360.00 ,4000,Operational Equipment Purchase,2084,Engineering,300.00 
Nottinghamshire Fire and Resccue Service,101867,Nottinghamshire Police and Crime Commissioner,Nottinghamshire Police and Crime Commissioner,Management & Support Services,4,202410,03/01/2024,P6,9109736,"-1,035.84 ","1,035.84 ",4007,Equipment Annual Service,2084,Engineering,"1,035.84 "
Nottinghamshire Fire and Resccue Service,103373,GTT EMEA Ltd,GTT EMEA Ltd,Management & Support Services,5,202410,25/12/2023,P6,9109792,"-22,305.32 ","22,305.32 ",4101,Computer Software Maintenance Contracts,2095,ICT Digital Transformation,"18,630.86 "
Nottinghamshire Fire and Resccue Service,103483,Risual Limited,Risual Limited,Management & Support Services,5,202410,30/11/2023,P6,9109798,"-14,470.91 ","14,470.91 ",4101,Computer Software Maintenance Contracts,2097,ICT Service Operations,"12,059.09 "
Nottinghamshire Fire and Resccue Service,103483,Risual Limited,Risual Limited,Management & Support Services,5,202410,27/12/2023,P6,9109816,"-13,622.00 ","13,622.00 ",4101,Computer Software Maintenance Contracts,2097,ICT Service Operations,"11,351.67 "
Nottinghamshire Fire and Resccue Service,103582,Softcat Limited,Softcat Limited,Management & Support Services,5,202410,28/12/2023,P6,9109829,"-18,655.20 ","18,655.20 ",4101,Computer Software Maintenance Contracts,2097,ICT Service Operations,"15,546.00 "
Nottinghamshire Fire and Resccue Service,103373,GTT EMEA Ltd,GTT EMEA Ltd,Management & Support Services,5,202410,01/01/2024,P6,9109839,"-35,798.40 ","35,798.40 ",4101,Computer Software Maintenance Contracts,2095,ICT Digital Transformation,"29,832.00 "
Nottinghamshire Fire and Resccue Service,102261,Airwave Solutions Ltd,Airwave Solutions Ltd,Management & Support Services,1,202410,09/01/2024,P6,9109861,"-1,530.58 ","1,530.58 ",4101,Computer Software Maintenance Contracts,2097,ICT Service Operations,"1,275.49 "
Nottinghamshire Fire and Resccue Service,104149,Cira Apps Limited,Cira Apps Limited,Management & Support Services,5,202410,01/01/2024,P6,9109944,"-2,621.96 ","2,621.96 ",4101,Computer Software Maintenance Contracts,2097,ICT Service Operations,"2,621.96 "
Nottinghamshire Fire and Resccue Service,102660,Jigsaw Systems Limited,Jigsaw Systems Limited,Management & Support Services,5,202410,24/01/2024,P6,9109955,"-7,687.30 ","7,687.30 ",4101,Computer Software Maintenance Contracts,2097,ICT Service Operations,"6,406.08 "
Nottinghamshire Fire and Resccue Service,103373,GTT EMEA Ltd,GTT EMEA Ltd,Management & Support Services,5,202410,25/12/2023,P6,9109791,"3,113.28 ","-3,113.28 ",4101,Computer Software Maintenance Contracts,2095,ICT Digital Transformation,"-2,594.40 "
Nottinghamshire Fire and Resccue Service,102103,Ricoh Uk Ltd,Ricoh Uk Ltd,Management & Support Services,1,202410,09/01/2024,P6,9109865,"-2,004.13 ","2,004.13 ",4105,Photocopier,2096,ICT Service Transformation,101.37 
Nottinghamshire Fire and Resccue Service,102103,Ricoh Uk Ltd,Ricoh Uk Ltd,Management & Support Services,1,202410,09/01/2024,P6,9109865,"-2,004.13 ","2,004.13 ",4105,Photocopier,2097,ICT Service Operations,"1,568.74 "
Nottinghamshire Fire and Resccue Service,100289,Home Office,Home Office,Management & Support Services,4,202410,20/12/2023,P6,9109795,"-68,702.81 ","68,702.81 ",4204,FireLink Contract Charges,2097,ICT Service Operations,"57,252.34 "
Nottinghamshire Fire and Resccue Service,100289,Home Office,Home Office,Management & Support Services,4,202410,17/01/2024,P6,9109959,"-68,106.04 ","68,106.04 ",4204,FireLink Contract Charges,2097,ICT Service Operations,"56,755.03 "
Nottinghamshire Fire and Resccue Service,103483,Risual Limited,Risual Limited,Management & Support Services,5,202410,15/12/2023,P6,9109668,"-1,780.06 ","1,780.06 ",4301,Phones - Landline,2097,ICT Service Operations,"1,483.38 "
Nottinghamshire Fire and Resccue Service,102420,BT PLC,BT PLC,Management & Support Services,1,202410,07/12/2023,P6,9109669,"-1,998.42 ","1,998.42 ",4301,Phones - Landline,2097,ICT Service Operations,"1,665.35 "
Nottinghamshire Fire and Resccue Service,103092,Daisy Corporate Services Trading Limited,Daisy Corporate Services Trading Limited,Management & Support Services,1,202410,01/01/2024,P6,9109790,"-1,824.83 ","1,824.83 ",4301,Phones - Landline,2096,ICT Service Transformation,"1,520.69 "
Nottinghamshire Fire and Resccue Service,103887,PageOne Communications Limited - Part Of Capita plc,PageOne Communications Limited - Part Of Capita plc,Management & Support Services,5,202410,05/01/2024,P6,9109945,"-1,080.00 ","1,080.00 ",4303,Pagers,2097,ICT Service Operations,900.00 
Nottinghamshire Fire and Resccue Service,103887,PageOne Communications Limited - Part Of Capita plc,PageOne Communications Limited - Part Of Capita plc,Management & Support Services,5,202410,12/01/2024,P6,9109946,"-4,612.80 ","4,612.80 ",4303,Pagers,2097,ICT Service Operations,"3,844.00 "
Nottinghamshire Fire and Resccue Service,101954,Toye Kenning & Spencer Bedworth Limited,Toye Kenning & Spencer Bedworth Limited,Management & Support Services,1,202410,13/12/2023,P6,9109883,-351.00 ,351.00 ,4400,Clothing and Uniform,2086,Procurement,13.50 
Nottinghamshire Fire and Resccue Service,101954,Toye Kenning & Spencer Bedworth Limited,Toye Kenning & Spencer Bedworth Limited,Management & Support Services,1,202410,13/12/2023,P6,9109883,-351.00 ,351.00 ,4400,Clothing and Uniform,2086,Procurement,124.50 
Nottinghamshire Fire and Resccue Service,101954,Toye Kenning & Spencer Bedworth Limited,Toye Kenning & Spencer Bedworth Limited,Management & Support Services,1,202410,13/12/2023,P6,9109883,-351.00 ,351.00 ,4400,Clothing and Uniform,2086,Procurement,154.50 
Nottinghamshire Fire and Resccue Service,103695,Pulp Friction Smoothie Bar CIC,Pulp Friction Smoothie Bar CIC,Management & Support Services,5,202410,02/01/2024,P6,9109710,-750.00 ,750.00 ,4523,Catering/Food & Beverages,2059,Corporate Training,625.00 
Nottinghamshire Fire and Resccue Service,103358,JSMTC (Joint Service Mountain Training Centre),JSMTC (Joint Service Mountain Training Centre),Operational Responses,5,202410,30/11/2023,P6,9109836,-277.62 ,277.62 ,4523,Catering/Food & Beverages,2074,Operational Training,277.62 
Nottinghamshire Fire and Resccue Service,101994,Peli Products (Uk) Ltd,Peli Products (Uk) Ltd,Management & Support Services,1,202410,22/12/2023,P6,9109688,-391.20 ,391.20 ,4534,Carriage and Packaging,9999,Default,9.50 
Nottinghamshire Fire and Resccue Service,102508,Collins Nets Ltd,Collins Nets Ltd,Management & Support Services,1,202410,02/01/2024,P6,9109805,-394.80 ,394.80 ,4534,Carriage and Packaging,2086,Procurement,9.00 
Nottinghamshire Fire and Resccue Service,103933,Abbey Industrial Solutions Limited,Abbey Industrial Solutions Limited,Management & Support Services,5,202410,21/12/2023,P6,9109806,-781.40 ,781.40 ,4534,Carriage and Packaging,9999,Default,12.00 
Nottinghamshire Fire and Resccue Service,104201,BlockaboxLimited,BlockaboxLimited,Management & Support Services,5,202410,09/01/2024,P6,9109842,-310.00 ,310.00 ,4534,Carriage and Packaging,9999,Default,10.00 
Nottinghamshire Fire and Resccue Service,102508,Collins Nets Ltd,Collins Nets Ltd,Management & Support Services,1,202410,10/01/2024,P6,9109849,"-1,966.80 ","1,966.80 ",4534,Carriage and Packaging,2086,Procurement,9.00 
Nottinghamshire Fire and Resccue Service,101803,Premier Hose Technologies Ltd,Premier Hose Technologies Ltd,Management & Support Services,1,202410,11/01/2024,P6,9109854,-277.97 ,277.97 ,4534,Carriage and Packaging,9999,Default,15.00 
Nottinghamshire Fire and Resccue Service,102306,Northern Diver (International) Ltd,Northern Diver (International) Ltd,Management & Support Services,1,202410,16/01/2024,P6,9109932,-575.40 ,575.40 ,4534,Carriage and Packaging,9999,Default,9.50 
Nottinghamshire Fire and Resccue Service,100468,Specialised Canvas Group,Specialised Canvas Group,Management & Support Services,1,202410,18/01/2024,P6,9109934,-365.62 ,365.62 ,4534,Carriage and Packaging,9999,Default,15.61 
Nottinghamshire Fire and Resccue Service,102752,K B Packaging,K B Packaging,Management & Support Services,5,202410,18/01/2024,P6,9109957,-416.16 ,416.16 ,4534,Carriage and Packaging,2086,Procurement,346.80 
Nottinghamshire Fire and Resccue Service,100290,Lemaitre Ltd,Lemaitre Ltd,Management & Support Services,1,202410,25/01/2024,P6,9109986,"-2,185.20 ","2,185.20 ",4534,Carriage and Packaging,9999,Default,75.00 
Nottinghamshire Fire and Resccue Service,104284,Sarah Wilkinson Design,Sarah Wilkinson Design,Management & Support Services,10,202410,12/01/2024,P6,9109840,-700.00 ,700.00 ,4536,Graphic Design,2051,Corporate Communications,700.00 
Nottinghamshire Fire and Resccue Service,102964,Trinity Occupational and Public Health Solutions Ltd,Trinity Occupational and Public Health Solutions Ltd,Management & Support Services,5,202410,30/11/2023,P6,9109681,"-3,000.00 ","3,000.00 ",4552,Occupational Health Costs,2061,Occupational Health & Fitness,"3,000.00 "
Nottinghamshire Fire and Resccue Service,102964,Trinity Occupational and Public Health Solutions Ltd,Trinity Occupational and Public Health Solutions Ltd,Management & Support Services,5,202410,31/08/2023,P6,9109682,"-2,600.00 ","2,600.00 ",4552,Occupational Health Costs,2061,Occupational Health & Fitness,"2,600.00 "
Nottinghamshire Fire and Resccue Service,102964,Trinity Occupational and Public Health Solutions Ltd,Trinity Occupational and Public Health Solutions Ltd,Management & Support Services,5,202410,16/01/2024,P6,9109977,"-2,600.00 ","2,600.00 ",4552,Occupational Health Costs,2061,Occupational Health & Fitness,"2,600.00 "
Nottinghamshire Fire and Resccue Service,101712,Browne Jacobson LLP,Browne Jacobson LLP,Prevention & Education,1,202410,21/12/2023,P6,9109712,"-2,072.88 ","2,072.88 ",4553,Professional Fees - Estates Related,1036,Clifton Community Safety Centre,526.70 
Nottinghamshire Fire and Resccue Service,100055,Nottingham City Council,Nottingham City Council,Management & Support Services,4,202410,21/12/2023,P6,9109755,-900.00 ,900.00 ,4554,Consultancy Fees - Non Estates Related,2054,Equalities Team,750.00 
Nottinghamshire Fire and Resccue Service,104172,Silktide Limited,Silktide Limited,Management & Support Services,5,202410,10/01/2024,P6,9109787,"-8,172.00 ","8,172.00 ",4554,Consultancy Fees - Non Estates Related,2097,ICT Service Operations,"6,810.00 "
Nottinghamshire Fire and Resccue Service,103582,Softcat Limited,Softcat Limited,Management & Support Services,5,202410,28/11/2023,P6,9109793,-960.00 ,960.00 ,4554,Consultancy Fees - Non Estates Related,2058,HR Support,800.00 
Nottinghamshire Fire and Resccue Service,103582,Softcat Limited,Softcat Limited,Management & Support Services,5,202410,28/11/2023,P6,9109794,-960.00 ,960.00 ,4554,Consultancy Fees - Non Estates Related,2058,HR Support,800.00 
Nottinghamshire Fire and Resccue Service,104291,Suzanne Ross (2thrive Consultancy),Suzanne Ross (2thrive Consultancy),Management & Support Services,5,202410,15/01/2024,P6,9109873,-450.00 ,450.00 ,4554,Consultancy Fees - Non Estates Related,2049,Professional Support,450.00 
Nottinghamshire Fire and Resccue Service,103257,Midland HR,Midland HR,Management & Support Services,5,202410,27/11/2023,P6,9109702,"1,425.01 ","-1,425.01 ",4554,Consultancy Fees - Non Estates Related,2058,HR Support,"-1,187.51 "
Nottinghamshire Fire and Resccue Service,103275,Zellis,Zellis,Management & Support Services,5,202410,30/11/2023,P6,9109770,-376.03 ,376.03 ,4555,Disclosure Checks,2049,Professional Support,144.00 
Nottinghamshire Fire and Resccue Service,103275,Zellis,Zellis,Management & Support Services,5,202410,30/11/2023,P6,9109770,-376.03 ,376.03 ,4555,Disclosure Checks,2049,Professional Support,193.36 
Nottinghamshire Fire and Resccue Service,103275,Zellis,Zellis,Management & Support Services,5,202410,29/12/2023,P6,9109777,-353.25 ,353.25 ,4555,Disclosure Checks,2049,Professional Support,126.00 
Nottinghamshire Fire and Resccue Service,103275,Zellis,Zellis,Management & Support Services,5,202410,29/12/2023,P6,9109777,-353.25 ,353.25 ,4555,Disclosure Checks,2049,Professional Support,189.37 
Nottinghamshire Fire and Resccue Service,101879,Alarm,Alarm,Management & Support Services,1,202410,01/01/2024,P6,9110001,"-1,440.00 ","1,440.00 ",4581,Subscriptions,2063,Risk Management & Insurance,"1,200.00 "
Nottinghamshire Fire and Resccue Service,101851,Complete Business Solutions Group Ltd,Complete Business Solutions Group Ltd,Management & Support Services,1,202410,19/01/2024,P6,9109956,-560.00 ,560.00 ,4583,Marketing and Publicity,2068,Prevention,560.00 
Nottinghamshire Fire and Resccue Service,102107,Bits At Micks,Bits At Micks,Operational Responses,1,202410,31/12/2023,P6,9109809,"-1,932.00 ","1,932.00 ",4594,Training/ Teaching Equipment,1019,West Bridgford,460.00 
Nottinghamshire Fire and Resccue Service,102107,Bits At Micks,Bits At Micks,Operational Responses,1,202410,31/12/2023,P6,9109809,"-1,932.00 ","1,932.00 ",4594,Training/ Teaching Equipment,1020,Stockhill,230.00 
Nottinghamshire Fire and Resccue Service,102107,Bits At Micks,Bits At Micks,Operational Responses,1,202410,31/12/2023,P6,9109809,"-1,932.00 ","1,932.00 ",4594,Training/ Teaching Equipment,1023,Stapleford,460.00 
Nottinghamshire Fire and Resccue Service,102107,Bits At Micks,Bits At Micks,Operational Responses,1,202410,31/12/2023,P6,9109809,"-1,932.00 ","1,932.00 ",4594,Training/ Teaching Equipment,1027,Carlton,460.00 
Nottinghamshire Fire and Resccue Service,103849,Vision Support Services Ltd,Vision Support Services Ltd,Operational Responses,5,202410,21/11/2023,P6,9109652,-367.14 ,367.14 ,4600,Community Safety Delivery Consumables,1019,West Bridgford,305.95 
Nottinghamshire Fire and Resccue Service,103849,Vision Support Services Ltd,Vision Support Services Ltd,Operational Responses,5,202410,08/01/2024,P6,9109775,-360.11 ,360.11 ,4600,Community Safety Delivery Consumables,1029,Highfields Station,300.09 
Nottinghamshire Fire and Resccue Service,102376,Bristol Uniforms Limited,Bristol Uniforms Limited,Management & Support Services,1,202410,19/12/2023,P6,9109663,"1,148.18 ","-1,148.18 ",4611,Stock Adjustments,2086,Procurement,-956.82 
Nottinghamshire Fire and Resccue Service,104315,Trophies and Awards UK Ltd,Trophies and Awards UK Ltd,Management & Support Services,5,202410,28/10/2023,P6,9109918,-912.00 ,912.00 ,4626,Gifts and Donations,2093,Command Suite,760.00 
Nottinghamshire Fire and Resccue Service,102283,The Financial Reporting Council,The Financial Reporting Council,Management & Support Services,4,202410,23/11/2023,P6,9109700,-459.00 ,459.00 ,7502,External Audit Fees,1086,Corporate Core,459.00 
Nottinghamshire Fire and Resccue Service,102376,Bristol Uniforms Limited,Bristol Uniforms Limited,Management & Support Services,1,202410,21/12/2023,P6,9109664,-288.00 ,288.00 ,B314,Stock   ,9999,Default,240.00 
Nottinghamshire Fire and Resccue Service,102190,Dot Promotional Clothing,Dot Promotional Clothing,Management & Support Services,1,202410,22/12/2023,P6,9109686,-570.00 ,570.00 ,B314,Stock   ,9999,Default,475.00 
Nottinghamshire Fire and Resccue Service,101994,Peli Products (Uk) Ltd,Peli Products (Uk) Ltd,Management & Support Services,1,202410,22/12/2023,P6,9109688,-391.20 ,391.20 ,B314,Stock   ,9999,Default,316.50 
Nottinghamshire Fire and Resccue Service,103242,New Balance Athletic Shoes (UK) Limited,New Balance Athletic Shoes (UK) Limited,Management & Support Services,5,202410,18/12/2023,P6,9109711,"-1,406.15 ","1,406.15 ",B314,Stock   ,9999,Default,"1,171.79 "
Nottinghamshire Fire and Resccue Service,103981,Joseph Gleave and Son Limited -Joseph Gleave and Son (Holdings) Limited,Joseph Gleave and Son Limited -Joseph Gleave and Son (Holdings) Limited,Management & Support Services,5,202410,05/01/2024,P6,9109727,-976.08 ,976.08 ,B314,Stock   ,9999,Default,813.40 
Nottinghamshire Fire and Resccue Service,102190,Dot Promotional Clothing,Dot Promotional Clothing,Management & Support Services,1,202410,05/01/2024,P6,9109772,-958.68 ,958.68 ,B314,Stock   ,9999,Default,798.90 
Nottinghamshire Fire and Resccue Service,102376,Bristol Uniforms Limited,Bristol Uniforms Limited,Management & Support Services,1,202410,14/12/2023,P6,9109799,"-1,169.89 ","1,169.89 ",B314,Stock   ,9999,Default,974.91 
Nottinghamshire Fire and Resccue Service,102376,Bristol Uniforms Limited,Bristol Uniforms Limited,Management & Support Services,1,202410,14/12/2023,P6,9109800,"-1,559.86 ","1,559.86 ",B314,Stock   ,9999,Default,"1,299.88 "
Nottinghamshire Fire and Resccue Service,104020,MPL (Yorkshire) Ltd,MPL (Yorkshire) Ltd,Management & Support Services,5,202410,22/12/2023,P6,9109801,-270.00 ,270.00 ,B314,Stock   ,9999,Default,225.00 
Nottinghamshire Fire and Resccue Service,102508,Collins Nets Ltd,Collins Nets Ltd,Management & Support Services,1,202410,02/01/2024,P6,9109805,-394.80 ,394.80 ,B314,Stock   ,9999,Default,320.00 
Nottinghamshire Fire and Resccue Service,103933,Abbey Industrial Solutions Limited,Abbey Industrial Solutions Limited,Management & Support Services,5,202410,21/12/2023,P6,9109806,-781.40 ,781.40 ,B314,Stock   ,9999,Default,639.17 
Nottinghamshire Fire and Resccue Service,100299,FireAngel Safety Technology Limited,FireAngel Safety Technology Limited,Management & Support Services,1,202410,03/01/2024,P6,9109810,"-15,600.00 ","15,600.00 ",B314,Stock   ,9999,Default,"13,000.00 "
Nottinghamshire Fire and Resccue Service,100357,Eastern Shires Purchasing Organisation,Eastern Shires Purchasing Organisation,Management & Support Services,1,202410,08/01/2024,P6,9109812,"-1,552.26 ","1,552.26 ",B314,Stock   ,9999,Default,"1,293.55 "
Nottinghamshire Fire and Resccue Service,104201,BlockaboxLimited,BlockaboxLimited,Management & Support Services,5,202410,09/01/2024,P6,9109842,-310.00 ,310.00 ,B314,Stock   ,9999,Default,300.00 
Nottinghamshire Fire and Resccue Service,104064,Redbrick Print Solutions LLP,Redbrick Print Solutions LLP,Management & Support Services,5,202410,31/12/2023,P6,9109843,-480.00 ,480.00 ,B314,Stock   ,9999,Default,400.00 
Nottinghamshire Fire and Resccue Service,102190,Dot Promotional Clothing,Dot Promotional Clothing,Management & Support Services,1,202410,10/01/2024,P6,9109847,-380.88 ,380.88 ,B314,Stock   ,9999,Default,317.40 
Nottinghamshire Fire and Resccue Service,102508,Collins Nets Ltd,Collins Nets Ltd,Management & Support Services,1,202410,10/01/2024,P6,9109849,"-1,966.80 ","1,966.80 ",B314,Stock   ,9999,Default,"1,630.00 "
Nottinghamshire Fire and Resccue Service,101803,Premier Hose Technologies Ltd,Premier Hose Technologies Ltd,Management & Support Services,1,202410,11/01/2024,P6,9109854,-277.97 ,277.97 ,B314,Stock   ,9999,Default,216.64 
Nottinghamshire Fire and Resccue Service,103981,Joseph Gleave and Son Limited -Joseph Gleave and Son (Holdings) Limited,Joseph Gleave and Son Limited -Joseph Gleave and Son (Holdings) Limited,Management & Support Services,5,202410,12/01/2024,P6,9109860,-433.99 ,433.99 ,B314,Stock   ,9999,Default,361.66 
Nottinghamshire Fire and Resccue Service,100357,Eastern Shires Purchasing Organisation,Eastern Shires Purchasing Organisation,Management & Support Services,1,202410,24/10/2023,P6,9109862,-860.88 ,860.88 ,B314,Stock   ,9999,Default,717.40 
Nottinghamshire Fire and Resccue Service,102376,Bristol Uniforms Limited,Bristol Uniforms Limited,Management & Support Services,1,202410,10/01/2024,P6,9109868,-335.30 ,335.30 ,B314,Stock   ,9999,Default,279.42 
Nottinghamshire Fire and Resccue Service,102376,Bristol Uniforms Limited,Bristol Uniforms Limited,Management & Support Services,1,202410,10/01/2024,P6,9109869,"-1,508.87 ","1,508.87 ",B314,Stock   ,9999,Default,"1,257.39 "
Nottinghamshire Fire and Resccue Service,102190,Dot Promotional Clothing,Dot Promotional Clothing,Management & Support Services,1,202410,19/01/2024,P6,9109915,-261.00 ,261.00 ,B314,Stock   ,9999,Default,217.50 
Nottinghamshire Fire and Resccue Service,104070,Apollo Signs & Engraving,Apollo Signs & Engraving,Management & Support Services,5,202410,18/01/2024,P6,9109917,-831.60 ,831.60 ,B314,Stock   ,9999,Default,693.00 
Nottinghamshire Fire and Resccue Service,102376,Bristol Uniforms Limited,Bristol Uniforms Limited,Management & Support Services,1,202410,17/01/2024,P6,9109925,"-4,189.40 ","4,189.40 ",B314,Stock   ,9999,Default,"3,491.17 "
Nottinghamshire Fire and Resccue Service,102752,K B Packaging,K B Packaging,Management & Support Services,5,202410,16/01/2024,P6,9109928,-400.80 ,400.80 ,B314,Stock   ,9999,Default,334.00 
Nottinghamshire Fire and Resccue Service,102376,Bristol Uniforms Limited,Bristol Uniforms Limited,Management & Support Services,1,202410,19/01/2024,P6,9109930,-671.71 ,671.71 ,B314,Stock   ,9999,Default,559.76 
Nottinghamshire Fire and Resccue Service,102306,Northern Diver (International) Ltd,Northern Diver (International) Ltd,Management & Support Services,1,202410,16/01/2024,P6,9109932,-575.40 ,575.40 ,B314,Stock   ,9999,Default,470.00 
Nottinghamshire Fire and Resccue Service,100468,Specialised Canvas Group,Specialised Canvas Group,Management & Support Services,1,202410,18/01/2024,P6,9109934,-365.62 ,365.62 ,B314,Stock   ,9999,Default,289.08 
Nottinghamshire Fire and Resccue Service,102376,Bristol Uniforms Limited,Bristol Uniforms Limited,Management & Support Services,1,202410,24/01/2024,P6,9109979,"-4,387.58 ","4,387.58 ",B314,Stock   ,9999,Default,"3,656.32 "
Nottinghamshire Fire and Resccue Service,103433,First Products (Sussex) Limited,First Products (Sussex) Limited,Management & Support Services,5,202410,17/01/2024,P6,9109980,"-4,140.00 ","4,140.00 ",B314,Stock   ,9999,Default,"3,450.00 "
Nottinghamshire Fire and Resccue Service,100357,Eastern Shires Purchasing Organisation,Eastern Shires Purchasing Organisation,Management & Support Services,1,202410,08/01/2024,P6,9109981,"-1,315.38 ","1,315.38 ",B314,Stock   ,9999,Default,"1,096.15 "
Nottinghamshire Fire and Resccue Service,100290,Lemaitre Ltd,Lemaitre Ltd,Management & Support Services,1,202410,25/01/2024,P6,9109986,"-2,185.20 ","2,185.20 ",B314,Stock   ,9999,Default,"1,746.00 "
Nottinghamshire Fire and Resccue Service,102864,William Sugden & sons Limited,William Sugden & sons Limited,Management & Support Services,5,202410,23/01/2024,P6,9109987,-474.00 ,474.00 ,B314,Stock   ,9999,Default,395.00 
Nottinghamshire Fire and Resccue Service,102376,Bristol Uniforms Limited,Bristol Uniforms Limited,Management & Support Services,1,202410,12/12/2023,P6,9109997,-382.73 ,382.73 ,B314,Stock   ,9999,Default,318.94 
Nottinghamshire Fire and Resccue Service,101100,Angloco Limited,Angloco Limited,Management & Support Services,1,202410,05/01/2024,P6,9109731,"-6,669.60 ","6,669.60 ",C001,Vehicle Purchase,4000,Rescue Pump Replacement,"5,558.00 "
Nottinghamshire Fire and Resccue Service,101100,Angloco Limited,Angloco Limited,Management & Support Services,1,202410,01/12/2023,P6,9109739,"-95,570.40 ","95,570.40 ",C001,Vehicle Purchase,4000,Rescue Pump Replacement,"79,642.00 "
Nottinghamshire Fire and Resccue Service,101100,Angloco Limited,Angloco Limited,Management & Support Services,1,202410,29/12/2023,P6,9109740,"-95,570.40 ","95,570.40 ",C001,Vehicle Purchase,4000,Rescue Pump Replacement,"79,642.00 "
Nottinghamshire Fire and Resccue Service,100224,Delta Fire,Delta Fire,Management & Support Services,1,202410,17/01/2024,P6,9109919,"-3,176.46 ","3,176.46 ",C001,Vehicle Purchase,4000,Rescue Pump Replacement,"2,647.05 "
Nottinghamshire Fire and Resccue Service,101100,Angloco Limited,Angloco Limited,Management & Support Services,1,202410,19/01/2024,P6,9109967,"-95,570.40 ","95,570.40 ",C001,Vehicle Purchase,4000,Rescue Pump Replacement,"79,642.00 "
Nottinghamshire Fire and Resccue Service,104140,Wheely-Safe Limited,Wheely-Safe Limited,Management & Support Services,5,202410,24/01/2024,P6,9109982,-474.18 ,474.18 ,C001,Vehicle Purchase,4000,Rescue Pump Replacement,395.15 
Nottinghamshire Fire and Resccue Service,104192,Disc-Lock Europe Limited,Disc-Lock Europe Limited,Management & Support Services,5,202410,19/01/2024,P6,9109983,-300.00 ,300.00 ,C001,Vehicle Purchase,4000,Rescue Pump Replacement,250.00 
Nottinghamshire Fire and Resccue Service,103919,Chargemaster Limited,Chargemaster Limited,Management & Support Services,5,202410,22/12/2023,P6,9109691,"-4,776.00 ","4,776.00 ",C101,Building Works,4100,Fire Station Improvement & Refurbishments,"3,980.00 "
Nottinghamshire Fire and Resccue Service,102910,Faithful and Gould Limited,Faithful and Gould Limited,Operational Responses,5,202410,12/12/2023,P6,9109783,"-12,294.60 ","12,294.60 ",C154,Professional Fees - Design,1024,Eastwood,"3,823.50 "
Nottinghamshire Fire and Resccue Service,102910,Faithful and Gould Limited,Faithful and Gould Limited,Operational Responses,5,202410,12/12/2023,P6,9109783,"-12,294.60 ","12,294.60 ",C154,Professional Fees - Design,1029,Highfields Station,"6,422.00 "
Nottinghamshire Fire and Resccue Service,101712,Browne Jacobson LLP,Browne Jacobson LLP,Management & Support Services,1,202410,21/12/2023,P6,9109712,"-2,072.88 ","2,072.88 ",C157,Professional Fees - Legal,4102,Strategic New Build Projects,"1,200.70 "
Nottinghamshire Fire and Resccue Service,100467,Kingsfield Computer Products Ltd,Kingsfield Computer Products Ltd,Management & Support Services,1,202410,20/12/2023,P6,9109720,"-2,722.80 ","2,722.80 ",C200,Hardware,4300,ICT Capital Programme,"2,269.00 "
Nottinghamshire Fire and Resccue Service,103483,Risual Limited,Risual Limited,Management & Support Services,5,202410,27/12/2023,P6,9109815,"-1,203.36 ","1,203.36 ",C200,Hardware,4300,ICT Capital Programme,"1,002.80 "
Nottinghamshire Fire and Resccue Service,103483,Risual Limited,Risual Limited,Management & Support Services,5,202410,15/12/2023,P6,9109655,"-1,140.00 ","1,140.00 ",C202,Consultancy and Services,4300,ICT Capital Programme,950.00 
Nottinghamshire Fire and Resccue Service,103483,Risual Limited,Risual Limited,Management & Support Services,5,202410,24/11/2023,P6,9109763,"-2,280.00 ","2,280.00 ",C202,Consultancy and Services,4300,ICT Capital Programme,"1,900.00 "
,***Note:,,,,,,,,,,,,,,,
,"***The report shows the payment in its original form. This means disaggregating many invoices into individual component payments many of which will be less than £250 in their own right. This explains why you will see many of the amounts showing less than £250. They were, however, paid as part of an invoice of £250 or more.

**** The Invoice date is the date issued on the invoice. This date may fall out of the date range for the report. In most cases this is due to the invoice being received  late.",,,,,,,,,,,,,,,